Cogmind - Beta 15 @@@ ROGUE MODE // 2025.07.11 @ 23:26:54 Player: Cracklepappy Result: Self-destructed Performance ------------- Evolutions (8) 4000 Regions Visited (41) 8200 Robots Destroyed (543) 2715 Value Destroyed (25098) 25098 Prototype IDs (142) 2840 Alien Tech Used (3) 600 Bonus (12263) 12263 TOTAL SCORE: 55716 Bonus ------- High Alert Combat Kills 4663 Follower Combat Kills 2359 Awakened Behemoth Slayer 1000 Entered Garrisons 1000 Network Hubs Disabled 400 Destroyed Z-Imprinter 1000 Acquired ECA 300 Met Warlord at Base 500 MAIN.C Attacked Warlord 500 Warlord Defense Kills 220 Met Warlord at Research 2000 Invited to Help at Command 2000 Friendly Fire -3679 Cogmind --------- Core Integrity 122/1450 Matter 134/1050 Energy 136/900 System Corruption 29% Temperature Cool (0) Movement Hovering (38) Location -2/Protoforge Parts ------- > --- POWER (2) -------- (None) > --- PROPULSION (9) --- Experimental Antigrav System Experimental Antigrav System Gravjet Array Gravjet Array Experimental Q-thruster (fused) Experimental Biomechanical Wings Experimental Biomechanical Wings > --- UTILITY (8) ------ Concept Antigrav Storage Unit Concept Chromion Battery Concept NT7 Matterbank Enhanced Optical Array Advanced Target Analyzer Graphene Brace (fused) Advanced Component Analysis Suite > --- WEAPON (4) ------- Compact Linear Accelerator Concept Deflector Sword Experimental Jetlance > --- INVENTORY (25) --- Faulty Gravjet Array Faulty Gravjet Array Faulty Gravjet Array Concept Combat Aerolev Unit Faulty Experimental Biomechanical Wings Faulty Concept Fieldthrust Drive High-powered Transdimensional Reconstructor Concept Heavy Railcannon Fusion Bomb Launcher Peak State ------------ > --- POWER ------------ Mini Fusion Reactor > --- PROPULSION ------- Impulse Thruster Array Experimental Q-thruster Experimental Biomechanical Wings Experimental Surge Thruster Experimental Surge Thruster Experimental Surge Thruster Experimental Surge Thruster Experimental Surge Thruster > --- UTILITY ---------- Advanced Cryofiber Web Advanced Heat Sink Experimental Heat Sink Large Storage Unit Concept Chromion Battery Enhanced Optical Array Graphene Brace Crosscalibrator > --- WEAPON ----------- Concept XC Strikerail Concept XC Strikerail Sigix Broadsword > --- INVENTORY -------- Experimental Biomechanical Wings Concept Fieldthrust Drive Concept Chromion Battery Concept Chromion Battery Experimental Matter Compressor IFF Parser Advanced Component Analysis Suite High-powered Transdimensional Reconstructor High-powered Transdimensional Reconstructor Core Cannon Concept XC Strikerail Fusion Bomb Launcher CR-A16's Behemoth Slayer Experimental Jetlance [Rating: 216] Favorites ----------- Power Cooled Ion Engine Engine Cooled Ion Engine Power Core Micro Fission Core Reactor Micro Antimatter Reactor Propulsion Light Treads Treads Light Treads Wheel Compact Wheel Hover Unit Linear Gravjet Flight Unit Improved Diametric Drive Utility Huge Storage Unit Device Advanced Heat Sink Storage Huge Storage Unit Processor Enhanced Optical Array Hackware Improved Hacking Suite Protection Improved Propulsion Shielding Weapon Improved Light Cannon Energy Gun Heavy EM Pulse Gun Energy Cannon Core Cannon Ballistic Gun Improved Assault Rifle Ballistic Cannon Improved Light Cannon Launcher Improved Proton Missile Launcher Special Weapon Plasma Cutter Impact Weapon Shock Maul Slashing Weapon Sigix Broadsword Piercing Weapon CR-A16's Behemoth Slayer Special Melee Weapon Improved Datajack Build | -11 -10 -10 -9 -9 -9 -9 -7 -7 -7 -7 -7 -7 -7 -6 -6 -6 -6 -6 -6 -6 -6 -6 -6 -6 -5 -5 -5 -5 -5 -5 -4 -4 -4 -4 -4 -3 -3 -3 -2 -2 -2 ------- Run | Yrd Mat Min Mat Sto Gar Rec Fac Was Fac Low Low Zio Dee Pro Fac Was Fac Gar Fac Ext Cet Arc Hub Gar Fac Was Fac Upp Upp War Pro Fac Was Fac Gar Res Qua Gar Res Tes Frg Slots Evolved 16 | . . . 2 . . . 4 . . . . . . . 2 . . . . . . . . . 2 . . . . . . 2 . . . 2 . . 2 . . Power 1 | . . . . . . . . . . . . . . . 1 . . . . . . . . . . . . . . . . . . . . . . . . . . Propulsion 7 | . . . 1 . . . 1 . . . . . . . 1 . . . . . . . . . 1 . . . . . . 2 . . . . . . 1 . . Utility 6 | . . . . . . . 2 . . . . . . . . . . . . . . . . . 1 . . . . . . . . . . 2 . . 1 . . Weapon 2 | . . . 1 . . . 1 . . . . . . . . . . . . . . . . . . . . . . . . . . . . . . . . . . Parts Attached 480 | 7 11 7 25 19 9 4 28 6 35 1 2 2 8 1 10 2 . 2 3 9 6 11 5 19 12 8 19 10 3 23 9 29 6 19 15 17 6 11 26 3 32 Power 88 | 1 3 1 3 4 2 . 2 . 3 . 1 . 1 . 2 . . . 1 5 . 2 4 6 2 3 3 2 1 5 . 5 1 5 2 4 1 5 6 . 2 Engine 35 | 1 3 1 3 4 1 . . . 1 . 1 . . . 1 . . . . 4 . 2 3 1 1 1 1 . 1 . . 3 . 2 . . . . . . . Core 26 | . . . . . 1 . 2 . 2 . . . . . 1 . . . 1 1 . . 1 5 1 1 2 2 . 3 . . . . 2 . 1 . . . . Reactor 27 | . . . . . . . . . . . . . 1 . . . . . . . . . . . . 1 . . . 2 . 2 1 3 . 4 . 5 6 . 2 Propulsion 117 | 2 1 2 9 7 1 1 7 1 6 . . . . . 5 1 . . . 1 . . . 3 6 2 7 3 . 4 3 7 1 4 3 9 1 . 7 . 13 Treads 23 | 2 1 1 9 7 1 1 . . . . . . . . . . . . . . . . . . . . . 1 . . . . . . . . . . . . . Leg . | . . . . . . . . . . . . . . . . . . . . . . . . . . . . . . . . . . . . . . . . . . Wheel 1 | . . 1 . . . . . . . . . . . . . . . . . . . . . . . . . . . . . . . . . . . . . . . Hover 18 | . . . . . . . . . . . . . . . 1 . . . . . . . . . 6 2 1 . . 1 1 1 . 1 . . . . . . 4 Flight 75 | . . . . . . . 7 1 6 . . . . . 4 1 . . . 1 . . . 3 . . 6 2 . 3 2 6 1 3 3 9 1 . 7 . 9 Utility 157 | 2 4 1 3 3 3 1 9 3 12 . . 1 7 1 3 1 . 1 2 2 2 7 1 5 2 3 8 2 2 8 2 11 4 6 3 4 3 5 11 1 8 Device 82 | 1 2 1 1 1 2 . 4 2 3 . . 1 4 1 2 1 . . 1 1 . 6 1 3 . 3 5 2 1 3 1 5 4 4 2 . 2 3 6 . 3 Storage 21 | 1 2 . . . . . 2 . 1 . . . 1 . . . . . . . . . . . 1 . 1 . . 2 . 1 . . . 1 1 2 1 . 4 Processor 23 | . . . . . . . 2 . 4 . . . . . . . . 1 . . 1 . . 2 . . 1 . 1 2 1 . . . 1 3 . . 3 . 1 Hackware 16 | . . . . . . . . . 3 . . . . . 1 . . . 1 . . 1 . . 1 . 1 . . 1 . 5 . 2 . . . . . . . Protection 15 | . . . 2 2 1 1 1 1 1 . . . 2 . . . . . . 1 1 . . . . . . . . . . . . . . . . . 1 1 . Artifact . | . . . . . . . . . . . . . . . . . . . . . . . . . . . . . . . . . . . . . . . . . . Weapon 118 | 2 3 3 10 5 3 2 10 2 14 1 1 1 . . . . . 1 . 1 4 2 . 5 2 . 1 3 . 6 4 6 . 4 7 . 1 1 2 2 9 Energy Gun 16 | 1 2 2 4 . . . . . 1 . . . . . . . . . . . 1 . . . . . . . . 2 1 . . . 1 . . . . 1 . Energy Cannon 3 | . . . 1 . . . . 1 . . . . . . . . . . . . . . . . . . . . . . . . . . . . . 1 . . . Ballistic Gun 53 | 1 . . 4 . . 1 9 . 8 . 1 . . . . . . . . . 2 2 . 5 1 . 1 3 . 1 2 3 . . 6 . . . 1 . 2 Ballistic Cannon 15 | . . . . 4 1 1 . . . . . . . . . . . . . 1 . . . . . . . . . 1 . . . 4 . . . . . 1 2 Launcher 6 | . . . . . . . . . 2 . . . . . . . . . . . 1 . . . . . . . . . . . . . . . . . 1 . 2 Special Weapon 6 | . 1 . . . 1 . . . . . . . . . . . . . . . . . . . . . . . . 2 1 1 . . . . . . . . . Impact Weapon 2 | . . . . . . . . . 1 . . . . . . . . . . . . . . . . . . . . . . 1 . . . . . . . . . Slashing Weapon 7 | . . 1 1 . . . 1 . 1 . . . . . . . . . . . . . . . . . . . . . . 1 . . . . 1 . . . 1 Piercing Weapon 6 | . . . . . . . . 1 1 . . 1 . . . . . . . . . . . . 1 . . . . . . . . . . . . . . . 2 Special Melee Weapon 4 | . . . . 1 1 . . . . 1 . . . . . . . 1 . . . . . . . . . . . . . . . . . . . . . . . Unidentified Prototypes 61 | . 1 . 4 1 . . . 1 8 . . 1 7 . 1 . . . . . 3 . . . . . 1 . . 12 . 2 . 1 . 2 2 2 6 2 4 Corrupted Parts 4 | . . . . . . . . . . . . . . . . . . . . . 3 1 . . . . . . . . . . . . . . . . . . . System Corruption 32 | . . . . . . . . . . . . . . . . . . . . . 30 2 . . . . . . . . . . . . . . . . . . . Parts Lost 108 | . 2 4 . 1 3 1 6 . 6 . . . . . 1 . . 1 . 6 2 . 2 8 1 . 8 1 1 . 1 5 . 3 11 3 1 2 1 . 27 Power 20 | . 1 . . . . . 1 . 2 . . . . . . . . . . 3 . . . 3 . . . . . . . 2 . 1 2 . . 1 . . 4 Propulsion 41 | . . 2 . 1 . . 2 . 2 . . . . . 1 . . . . 1 . . . 5 1 . 6 1 . . . 1 . 1 4 3 . . . . 10 Utility 31 | . 1 . . . 3 1 1 . 1 . . . . . . . . 1 . . 2 . 1 . . . 1 . 1 . . 1 . 1 3 . 1 1 1 . 10 Weapon 16 | . . 2 . . . . 2 . 1 . . . . . . . . . . 2 . . 1 . . . 1 . . . 1 1 . . 2 . . . . . 3 Highest Loss Streak 6 | . 1 4 . 1 1 1 6 . 3 . . . . . 1 . . 1 . 5 2 . 1 2 1 . 4 1 1 . 1 3 . 1 3 3 1 2 1 . 6 To Critical Strikes 1 | . . . . . . . . . 1 . . . . . . . . . . . . . . . . . . . . . . . . . . . . . . . . Average Backups 14 | 4 20 24 24 24 24 24 7 7 7 7 7 7 7 7 7 7 8 8 7 7 5 4 4 4 5 9 9 5 5 8 9 9 9 9 9 9 9 12 12 13 11 Power . | . 1 1 1 1 1 1 . . . . . . . . . . . . . . . . . . . . . . . . . . . . . . . . . . . Propulsion 3 | 2 7 6 4 6 8 7 . . . . . . . . . . . . . . . . . . . . 2 . . 1 2 1 . . . . 1 1 1 1 1 Utility 5 | . 5 9 10 5 2 4 2 5 4 1 1 1 1 2 2 2 3 3 2 2 1 1 2 1 1 5 3 4 4 4 5 4 5 6 6 5 4 6 5 4 3 Weapon 4 | 1 4 5 6 9 10 9 2 1 1 3 3 3 2 3 2 2 2 2 2 3 1 1 2 2 2 2 1 . . 2 2 2 4 2 3 3 1 1 3 4 3 Tool/Special . | . . . . . . . . . . . . . . . . . . . . . . . . . . . . . . . . . . . . . . . . . . Unused Backups 106 | . 8 . 19 7 3 . 13 2 7 . . . 1 . 1 1 . . . . . . . . 1 . 4 1 . 1 . 2 2 5 . 1 2 . 4 1 20 Power 7 | . . . 1 2 . . 1 1 . . . . . . . . . . . . . . . . . . . . . . . . 1 1 . . . . . . . Propulsion 29 | . 4 . 4 1 . . 3 . 3 . . . . . . . . . . . . . . . . . 2 . . . . 1 . 1 . 1 . . . . 9 Utility 35 | . . . 5 4 2 . 3 . 3 . . . 1 . 1 1 . . . . . . . . 1 . 1 1 . . . . . 1 . . 2 . 3 1 5 Weapon 29 | . 2 . 9 . 1 . 6 . 1 . . . . . . . . . . . . . . . . . 1 . . 1 . 1 . 2 . . . . 1 . 4 Tool/Special 6 | . 2 . . . . . . 1 . . . . . . . . . . . . . . . . . . . . . . . . 1 . . . . . . . 2 Average Slot Usage (%) 94 | . 95 99 99 99 99 98 90 100 97 99 100 86 99 100 90 100 100 99 100 88 96 85 98 85 88 98 98 82 93 97 99 94 89 92 83 93 86 84 85 86 79 Engine 5 | . 12 14 11 11 11 11 . . . . . . . . . 6 6 6 6 1 6 6 7 . 1 . . . . . . 3 . . . . . . . . . Core 3 | . . . . . . . 6 7 6 7 7 7 6 7 6 6 6 6 6 5 5 5 4 5 8 8 8 6 11 10 11 2 . . 7 2 2 4 1 . . Reactor 1 | . . . . . . . . . . . . . . . . . . . . . . . . . . 1 1 . . . . 3 10 9 1 6 5 3 6 8 5 Treads 12 | . 27 25 32 33 33 33 . . . . . . . . . . . . . . . . . . . . . 4 5 . . . . . . . . . . . . Hover 1 | . . . . . . . . . . . . . . . . . . . . . . . . . 26 35 31 . . . . 1 . . . . . . . . . Flight 16 | . . . . . . . 28 30 29 30 30 30 30 30 30 33 33 33 33 32 33 33 33 29 4 . 2 19 23 32 35 36 36 35 29 33 29 28 29 30 28 Device 8 | . 12 14 1 . 6 . 5 7 7 7 7 7 11 15 13 13 13 8 11 13 13 10 5 4 5 5 10 22 22 12 8 4 6 9 5 11 13 10 13 16 17 Storage 7 | . 14 14 11 11 11 11 4 7 8 7 7 7 7 7 6 6 6 6 6 6 1 . . . . 5 5 . . 5 5 5 5 5 5 4 4 7 6 4 6 Processor 2 | . . . . . . . 8 7 1 . . . . . . . . 3 1 . 4 6 6 6 4 . . 5 5 5 6 5 5 5 7 8 9 9 8 8 5 Hackware 3 | . . . . . . . . . 8 7 7 7 7 7 6 6 6 6 6 6 6 6 13 13 16 17 10 . . 2 5 9 8 5 5 4 4 4 4 4 . Protection 3 | . . . 9 11 4 10 5 6 2 7 6 7 3 . . . . . . . . . . . . . . . . . . . . . . . . . . . . Energy Gun 3 | . 20 27 4 . . . . . . . . . . . . . . . . . . . . . . . . . . . . . . . . . . . . . . Ballistic Gun 11 | . 7 . 28 6 . . 23 29 24 22 23 10 19 15 17 20 20 15 18 17 12 7 18 20 14 20 21 13 17 18 18 11 5 1 6 14 1 . . . 2 Ballistic Cannon 6 | . . . . 25 31 28 1 . . . . . . . . . . . . . 2 . . . . . . . . . . . . 10 8 . 3 4 3 4 3 Piercing Weapon 1 | . . . . . . . . . . . . 3 5 7 6 6 6 5 6 2 5 5 6 2 2 . . 5 5 3 1 4 5 4 3 3 4 4 4 4 2 Peak Build Rating 216 | 7 14 15 22 22 23 22 40 44 64 65 66 66 72 64 77 79 79 82 79 82 84 93 86 90 98 106 109 79 80 112 106 148 152 154 157 140 175 178 206 209 216 Average Rating 68 | 4 10 13 20 20 20 20 33 41 44 64 65 50 63 63 69 77 79 77 78 72 78 67 79 62 85 102 102 73 77 93 102 122 147 149 118 119 168 173 191 205 191 On Entrance 80 | . 7 14 14 22 21 22 20 39 41 57 65 65 62 64 64 76 79 79 77 79 72 84 81 66 53 90 106 63 78 73 104 106 148 147 151 92 140 175 172 204 205 Naked Turns . | . . . . . . . . . . . . . . . . . . . . . . . . . . . . . . . . . . . . . . . . . . Heaviest Build 108 | 15 104 95 104 107 108 108 101 35 28 31 32 31 33 25 35 36 36 38 33 41 50 49 37 43 52 58 59 29 20 65 35 52 47 55 55 51 53 57 58 64 68 Greatest Support 96 | 40 40 40 60 63 63 60 60 27 28 31 31 31 31 25 35 37 37 37 37 37 37 37 37 28 45 58 60 20 20 34 34 56 56 57 57 59 59 59 66 66 96 Greatest Overweight (x) 19 | . 4 5 6 2 1 1 2 8 5 . 1 . 1 . 1 1 . 1 . 1 1 2 1 1 1 1 2 1 . 1 10 1 1 . 1 1 . . . . 19 Average Overweight (x) . | . 1 2 1 1 1 1 . 1 . . . . . . . . . . . . . . . . . . . . . . . . . . . . . . . . . Largest Inventory Capacity 25 | 8 25 25 25 25 25 25 25 8 8 8 8 8 8 8 8 8 8 8 8 8 8 5 5 5 10 10 10 10 5 10 10 10 10 10 10 10 15 15 15 15 25 Average Capacity 15 | 7 22 25 25 25 25 25 7 8 8 8 8 8 8 8 8 8 8 8 8 8 5 5 5 5 5 10 10 5 5 9 10 10 10 10 10 10 11 15 15 15 14 Most Carried 25 | 8 25 25 25 25 25 25 25 8 8 8 8 8 8 8 8 8 8 8 8 8 7 5 5 5 8 10 10 10 5 10 10 10 10 10 10 10 15 15 15 15 21 Average Carried 15 | 4 20 24 24 24 24 24 7 7 7 7 8 8 7 8 7 7 8 7 7 7 5 4 4 4 5 9 9 5 5 9 9 9 9 9 9 9 10 14 14 14 12 Final Capacity 25 | 8 25 25 25 25 25 25 8 8 8 8 8 8 8 8 8 8 8 8 8 8 5 5 5 5 10 10 10 5 5 10 10 10 10 10 10 10 15 15 15 15 25 Final Carried 25 | 8 25 24 25 25 25 25 8 8 8 8 8 8 8 8 8 8 8 8 8 8 5 5 5 5 7 10 10 5 5 10 10 10 10 10 10 10 15 15 15 15 13 Class Distribution -------------------- 17% | Tank 16% | Sprinter 15% | Scavenger-Sprinter 15% | Mutant 14% | Hacker-Sprinter 6% | Gunner 4% | Scavenger-Tank 3% | Scavenger-Gunner 3% | Scavenger-Mutant Dominant Class ---------------- Mutant | -10/Materials Mutant | -10/Mines Tank | -9/Materials Tank | -9/Storage Tank | -9/Garrison Tank | -9/Recycling Sprinter | -7/Factory Gunner | -7/Waste Sprinter | -7/Factory Sprinter | -7/Lower Caves Sprinter | -7/Lower Caves Sprinter | -7/Zion Sprinter | -7/Deep Caves Sprinter | -6/Proximity Caves Sprinter | -6/Factory Sprinter | -6/Waste Sprinter | -6/Factory Sprinter | -6/Garrison Sprinter | -6/Factory Sprinter | -6/Extension Scavenger-Gunner | -6/Cetus Sprinter | -6/Archives Scavenger-Sprinter | -6/Hub_04(d) Hacker-Sprinter | -6/Garrison Scavenger-Sprinter | -5/Factory Scavenger-Sprinter | -5/Waste Scavenger-Sprinter | -5/Factory Gunner | -5/Upper Caves Scavenger-Gunner | -5/Upper Caves Scavenger-Sprinter | -5/Warlord Scavenger-Sprinter | -4/Proximity Caves Hacker-Sprinter | -4/Factory Hacker-Sprinter | -4/Waste Scavenger-Sprinter | -4/Factory Scavenger-Sprinter | -4/Garrison Scavenger-Sprinter | -3/Research Hacker-Sprinter | -3/Quarantine Hacker-Sprinter | -3/Garrison Hacker-Sprinter | -2/Research Hacker-Sprinter | -2/Testing Scavenger-Mutant | -2/Protoforge Resources | -11 -10 -10 -9 -9 -9 -9 -7 -7 -7 -7 -7 -7 -7 -6 -6 -6 -6 -6 -6 -6 -6 -6 -6 -6 -5 -5 -5 -5 -5 -5 -4 -4 -4 -4 -4 -3 -3 -3 -2 -2 -2 ----------- Run | Yrd Mat Min Mat Sto Gar Rec Fac Was Fac Low Low Zio Dee Pro Fac Was Fac Gar Fac Ext Cet Arc Hub Gar Fac Was Fac Upp Upp War Pro Fac Was Fac Gar Res Qua Gar Res Tes Frg Matter Collected 21915 | 265 554 50 866 1000 1154 480 658 482 1400 65 82 99 328 160 494 80 . 368 60 411 170 450 239 1439 260 351 1338 286 88 930 909 596 155 927 850 362 234 1052 421 148 1654 Remotely 10 | . . . . . . . . . . . . . . . . . . . . . . . . 10 . . . . . . . . . . . . . . . . . Salvage Created 28751 | 148 924 120 1905 1500 941 689 517 326 1062 27 133 . 74 101 591 146 . 220 28 530 356 606 893 1888 518 56 2239 417 288 38 515 1774 490 2720 966 453 472 2159 800 259 862 Parts 1338 | 13 62 2 110 88 44 27 32 10 70 . 9 . 3 3 32 1 . 10 2 24 15 39 39 78 27 4 94 17 9 . 35 65 10 102 41 16 22 85 34 10 54 Haulers Intercepted 36 | . 1 . 6 6 . . 3 . 5 . . . . . 3 . . . . . . . . . . . 4 . . . . 1 . 5 . . . . 2 . . Recyclers Shooed 13 | . 3 . . 1 . 1 . . 1 . . . . . 1 . . . . 1 . . . . 1 . 2 . . . . 1 . 1 . . . . . . . Parts Field Recycled . | . . . . . . . . . . . . . . . . . . . . . . . . . . . . . . . . . . . . . . . . . . Retrieved Matter . | . . . . . . . . . . . . . . . . . . . . . . . . . . . . . . . . . . . . . . . . . . Parts Self-Destructed 44 | . . . . . . . . . . . 9 . . 1 . . . . . . . . . . . . . 9 1 . 24 . . . . . . . . . . Prevented . | . . . . . . . . . . . . . . . . . . . . . . . . . . . . . . . . . . . . . . . . . . Kills | -11 -10 -10 -9 -9 -9 -9 -7 -7 -7 -7 -7 -7 -7 -6 -6 -6 -6 -6 -6 -6 -6 -6 -6 -6 -5 -5 -5 -5 -5 -5 -4 -4 -4 -4 -4 -3 -3 -3 -2 -2 -2 ------- Run | Yrd Mat Min Mat Sto Gar Rec Fac Was Fac Low Low Zio Dee Pro Fac Was Fac Gar Fac Ext Cet Arc Hub Gar Fac Was Fac Upp Upp War Pro Fac Was Fac Gar Res Qua Gar Res Tes Frg Combat Hostiles Destroyed 353 | . 19 1 30 26 29 5 10 1 17 . 2 . 3 . 9 . . 4 . 3 4 4 5 22 4 . 26 5 . 1 16 7 . 14 18 4 3 32 2 1 26 Melee 46 | . . . . . . . . . . . . . . . . . . . . . . . . . . . . . . . . 2 . 9 4 . 3 16 . 1 11 Guns 193 | . 19 . 29 5 . . 10 1 17 . 2 . 1 . 5 . . 3 . 3 . 4 3 22 4 . 26 4 . 1 16 5 . . 7 4 . . . . 2 Cannons 84 | . . . . 21 29 5 . . . . . . . . . . . . . . . . . . . . . . . . . . . 4 6 . . 15 . . 4 AOE 17 | . . . 1 . . . . . . . . . 2 . 4 . . 1 . . . . 1 . . . . . . . . . . . . . . . . . 8 Classes Destroyed 28 | 3 4 . 5 . 2 . . 2 1 . 1 . 2 1 . . . . . . . . . 1 . . . 1 . 1 1 . . . . . . . . . 3 Worker 34 | 1 3 . 5 6 . 1 . . 2 . . . . . . . . . 1 2 . . 4 . . . 2 . . . . 3 . 2 . . . . 2 . . Builder 13 | . . . 3 . . 1 . . 1 . . . . . . . . . . 1 . . 2 . . . 2 . . . . . . 2 . . . . . . 1 Tunneler 3 | 3 . . . . . . . . . . . . . . . . . . . . . . . . . . . . . . . . . . . . . . . . . Hauler 36 | . 1 . 6 6 . . 3 . 5 . . . . . 3 . . . . . . . . . . . 4 . . . . 1 . 5 . . . . 2 . . Recycler 49 | 1 1 . 2 5 . 7 1 . 2 . . . . . . . . . . 1 . . 3 . 2 . 3 . . . . 8 . 8 . 2 1 . 1 1 . Minesweeper 2 | . . . . . . . . . . . 1 . . . . . . . . . . . . . . . . . . . 1 . . . . . . . . . . Mechanic 4 | . . . . . 1 . . . . . . . . . . . . . . . . . . . . . 1 . . . . . . 2 . . . . . . . Operator 16 | . . . 1 . . . . . 1 . . . . . 1 . . . 1 . . 9 . . . . . . . . . 1 . . . . 1 . 1 . . Drone 8 | . . . . . . . . . . . . . . . . . . . . . . . . . . . . . . . 2 . . . . . . . . . 6 Watcher 29 | . 3 . 3 2 1 . . . 1 . . . . . 1 . . . . . 1 . 2 . . . 1 . . . . 1 . 4 . 1 3 1 1 2 1 Swarmer 87 | . 6 . 4 4 5 . 7 . 11 . . . . . 7 . . . . . . . . 4 . . 9 4 . . 9 . . . 4 4 . 9 . . . Saboteur 1 | . . . . . . . . . . . . . . . . . . . . . . . . . . . . . . . . . . . . . . . . . 1 Grunt 97 | . 13 . 16 11 15 . 2 . 1 . 1 . . . . . . 1 . 1 . . 2 5 1 . 9 . . . 4 . . 4 4 . . 7 . . . Brawler 3 | . . . 1 . 1 . . . . . . . . . . . . . . . . . . . . . . . . . . . . . . . . 1 . . . Duelist 4 | . . . 1 . 1 1 . . . . . . . . . . . . . . . . . . . . . . . . . . . . . . . 1 . . . Sentry 51 | . . . 8 11 4 4 . . 1 . . . . . . . . 1 . 2 . 4 1 4 1 . 2 . . . . 2 . 2 1 . . 1 . . 2 Specialist 7 | . . . . . . . . . . . . . . . . . . . . . . . . 1 . . . . . . . . . . 2 . . 4 . . . Hunter 29 | . . . . . . . . . 1 . . . . . . . . 2 . . . . . 4 2 . 6 . . . . 2 . . 6 . . 6 . . . Programmer 39 | . . . . . 3 . 1 . 3 . 1 . . . 2 . . . . . . . 2 4 . . . . . . 1 3 . 5 . . 3 2 . 1 8 Behemoth 6 | . . . . . . . . . . . . . . . . . . . . . . . . . . . . 1 . . . . . 1 1 . . 1 2 . . Compactor 1 | . . . . . . . . 1 . . . . . . . . . . . . . . . . . . . . . . . . . . . . . . . . . Cetus Guard 4 | . . . . . . . . . . . . . . . . . . . . . 4 . . . . . . . . . . . . . . . . . . . . Decapitator 6 | . . . . . . . . . . . . . . . . . . . . . . . . . . . . . . . . . . . . . . . . . 6 Immortal 2 | . . . . . . . . . . . . . . . . . . . . . . . . . . . . . . . . . . . . . . . . . 2 Striker 1 | . . . . . . . . . . . . . . . . . . . . . . . . . . . . . . 1 . . . . . . . . . . . V-Series 1 | . . . . . . . . . . . . . . . . . . . . . . . . . . . . . . . . . . . . . . . . . 1 Z-Light 1 | . . . . . . . . . . . . . 1 . . . . . . . . . . . . . . . . . . . . . . . . . . . . Decomposer 4 | . . . . . . . . . . 1 . . . . . . . . . . . . . . . . . 3 . . . . . . . . . . . . . Packrat 4 | . . . . . . . . . . . . . . . . . . . . . . . . . . . . 2 2 . . . . . . . . . . . . Samaritan 8 | . . . . . . . . . . . . . . 2 . . . . . . . . . . . . . 1 2 . 1 . . . . . . . 2 . . Assembled 2 | . . . . . . . . . . . . . 2 . . . . . . . . . . . . . . . . . . . . . . . . . . . . Wasp 3 | . . . . . . . . . . . . . . . . . . 1 . . . . . . . . 1 . . . . . . 1 . . . . . . . Thug 1 | . . . . . . . . . . . . . . . . . . . . . . . . . . . . . . . . . . 1 . . . . . . . Savage 1 | . . . . . . . . . . . . . . . . . . . . 1 . . . . . . . . . . . . . . . . . . . . . Martyr 5 | . . . . . . . . 2 . . . . . . . 2 . . . . . . . . . 1 . . . . . . . . . . . . . . . Guerrilla 1 | . . . . . . . . . . . . . . . . . . . . 1 . . . . . . . . . . . . . . . . . . . . . Best Kill Streak 11 | 4 5 1 8 9 4 4 6 1 4 . 2 . 2 . 4 . . 2 2 3 5 7 6 5 3 . 4 4 . 1 6 6 . 11 4 5 3 6 5 2 10 Combat Bots Only 9 | . 3 1 3 8 4 2 6 1 3 . 1 . 2 . 4 . . 2 . 1 4 3 2 5 3 . 4 4 . 1 5 2 . 3 4 4 3 6 1 1 9 Max Kills in Single Turn 4 | 1 2 1 3 2 2 2 1 1 2 1 2 . 1 1 2 1 . 1 1 2 2 1 4 2 1 1 3 1 1 1 2 1 . 2 3 1 1 2 1 1 2 Gunslinging 1 | . . . 1 . . . . . . . 1 . . . . . . . . . . . . . . . 1 . . . 1 . . . 1 . . . . . . Exploded 2 | . . . 1 . . . . . . . . . 1 . 2 . . 1 . . . . 1 . . . . . . . . . . . . . . . . . 1 Melee 1 | . . . . . . . . . . . . . . . . . . . . . . . . . . . . . . . . 1 . 1 1 . 1 1 . 1 1 Uniques/NPCs Destroyed 2 | . . 1 . . . . . . . . . . 1 . . . . . . . . . . . . . . . . . . . . . . . . . . . . YI-UF0 (-10/Mines) Z-Imprinter (-7/Deep Caves) Combat | -11 -10 -10 -9 -9 -9 -9 -7 -7 -7 -7 -7 -7 -7 -6 -6 -6 -6 -6 -6 -6 -6 -6 -6 -6 -5 -5 -5 -5 -5 -5 -4 -4 -4 -4 -4 -3 -3 -3 -2 -2 -2 -------- Run | Yrd Mat Min Mat Sto Gar Rec Fac Was Fac Low Low Zio Dee Pro Fac Was Fac Gar Fac Ext Cet Arc Hub Gar Fac Was Fac Upp Upp War Pro Fac Was Fac Gar Res Qua Gar Res Tes Frg Hostile Shots Fired 2486 | . 92 14 79 69 94 14 157 . 198 3 30 . 7 1 100 . . 17 16 129 10 17 45 190 24 . 98 33 10 16 60 48 . 96 148 30 20 257 27 42 295 Missed 1006 | . 17 4 24 22 29 1 51 . 86 1 15 . 3 . 57 . . 3 14 62 2 6 31 94 12 . 42 10 6 8 22 20 . 32 48 11 7 136 14 19 97 Deflected 2 | . . . . . . . . . . . . . . . . . . . . . . . . . . . . . . . . . . . . . . . . . 2 Hits 1480 | . 75 10 55 47 65 13 106 . 112 2 15 . 4 1 43 . . 14 2 67 8 11 14 96 12 . 56 23 4 8 38 28 . 64 100 19 13 121 13 23 198 Melee 31 | . . . 1 . 2 2 1 . 2 . . . . . . . . . . . . . . . . . 1 . . . . . . . . . . . . . 22 Projectile 1449 | . 75 10 54 47 63 11 105 . 110 2 15 . 4 1 43 . . 14 2 67 8 11 14 96 12 . 55 23 4 8 38 28 . 64 100 19 13 121 13 23 176 AOE 27 | . . 14 . . . . . . . . . . . . . . . . . . . . . . . . . . . . . . . . . . . . 1 . 12 Critical Strikes 67 | . . . 3 . 3 1 1 1 4 . . . . . 1 . . . . . 1 1 1 2 . . 3 1 1 . 3 1 . 3 5 1 1 4 1 . 24 Actively Blocked 31 | . . . 1 . . . . . . . . . . . . . . . . . . . . . . . . . . . . . . . . . 1 4 1 . 24 Part Disruptions 6 | . . . . . . . . . 1 . 1 . . . . . . . . . . . . . . . . . . . . . . . 2 . . . . 1 1 Damage Taken 27234 | . 802 381 889 607 838 227 1213 21 1489 29 294 . 114 18 610 . . 287 31 782 221 263 258 1413 236 . 1500 350 68 21 366 537 . 1392 1893 410 308 1674 349 520 6823 Core 4187 | . 131 40 119 76 58 12 257 21 270 . 76 . . 18 172 . . 58 . 180 51 24 . 162 . . 320 82 . . 83 18 . 240 309 88 49 86 65 24 1098 Absorbed by Shields 626 | . . . . . 105 . . . . . . . . . 16 . . . . 48 . . . . . . . . . . 319 . . . 77 . . 61 . . . Redirected to Shielding 43 | . . . 12 . . . 18 . 13 . . . . . . . . . . . . . . . . . . . . . . . . . . . . . . . . Regen/Repaired (Parts) 5653 | . 216 . 53 317 . . 58 124 33 . . . . . 245 100 . 165 . . . . 174 . . 243 335 . . 100 . . 11 164 . 110 379 1147 310 308 1061 Core Remaining (%) 46 | 100 . 31 . . . 33 . . . . . . . 8 . . . . . . . . . 23 . . . . . . 51 . . . 50 . . 73 . . . Volleys Fired 1067 | 17 76 6 89 69 77 28 24 16 54 . 6 . 10 . 11 2 . 28 . 27 5 11 7 89 12 2 56 5 1 2 23 12 9 35 47 11 7 113 3 9 68 Largest 4 | 1 2 2 3 3 3 3 4 4 4 . 3 . 4 . 3 3 . 3 . 4 1 4 3 4 4 4 4 3 1 3 4 4 1 3 4 4 1 1 1 1 3 Hottest 300 | 20 100 90 135 99 99 99 122 92 120 . 90 . 120 . 90 90 . 90 . 120 43 138 105 135 133 135 135 72 24 72 102 128 35 153 183 99 51 300 51 300 300 Shots Fired 2647 | 17 151 12 255 195 222 79 86 64 207 . 13 . 34 . 29 6 . 56 . 45 5 42 18 256 45 8 224 15 2 6 78 35 9 64 98 39 7 113 3 9 100 Gun 1808 | 17 150 12 249 30 . 14 80 64 207 . 13 . 32 . 27 6 . 54 . 35 . 42 18 256 45 8 224 15 2 6 78 34 9 . 28 38 . . . . 15 Cannon 815 | . . . 6 165 222 65 6 . . . . . . . . . . . . 10 . . . . . . . . . . . . . 64 70 1 7 113 3 9 74 Launcher 22 | . . . . . . . . . . . . . 2 . 2 . . 2 . . 5 . . . . . . . . . . . . . . . . . . . 11 Special 2 | . 1 . . . . . . . . . . . . . . . . . . . . . . . . . . . . . . 1 . . . . . . . . . Kinetic 2421 | 17 60 . 177 195 222 79 86 64 207 . 13 . 32 . 27 6 . 54 . 45 . 42 18 256 45 8 224 15 2 6 78 34 9 64 95 39 7 106 3 8 78 Thermal 122 | . 61 . 48 . . . . . . . . . . . . . . . . . . . . . . . . . . . . . . . . . . 7 . 1 5 Explosive 17 | . . . . . . . . . . . . . 2 . 2 . . 2 . . . . . . . . . . . . . . . . . . . . . . 11 Electromagnetic 77 | . 30 12 30 . . . . . . . . . . . . . . . . . 5 . . . . . . . . . . . . . . . . . . . . Entropic 9 | . . . . . . . . . . . . . . . . . . . . . . . . . . . . . . . . . . . 3 . . . . . 6 Robot Hit Streak 23 | 4 8 8 23 17 16 18 11 15 15 . 3 . 3 . 5 4 . 6 . 8 3 8 5 14 14 5 11 4 . 6 7 11 6 7 12 7 . 9 1 . 7 Robot Miss Streak 20 | 2 3 1 4 3 4 3 2 2 5 . 2 . 7 . 5 3 . 4 . 7 . 2 1 4 4 1 7 4 . 3 20 3 1 3 8 5 . 5 . . 12 Penetration Max 2 | . . . . . . . 1 . 1 . 1 . . . 1 . . 1 . 1 . . 1 2 . . 1 . . . 1 . . . 1 . . 1 . . . Secondary Targets 28 | . 2 . 5 . . . 3 . 2 . 1 . 1 . . . . . . . . . . 2 . . 6 1 . . 3 . . . 1 1 . . . . . Max Gunslinging Chain 1 | . 1 . 1 . . . 1 . 1 . 1 . 1 . . . . . . . . . . 1 . . 1 1 . . 1 . . . 1 1 . . . . . Shots Hit Robots 1719 | 12 98 9 149 114 118 50 59 52 105 1 8 . 12 3 22 18 . 21 2 31 3 45 14 126 26 9 117 18 4 4 52 45 13 61 62 24 17 97 16 9 73 Core Hits 822 | 6 41 4 64 52 40 16 25 15 46 . 4 . 7 1 16 4 . 14 . 13 9 18 14 56 14 1 54 13 4 6 45 29 4 34 32 11 7 48 5 4 46 Critical Kills 25 | . . . 1 1 . . 1 . . . 1 . . . . . . . . 2 . 2 1 2 2 . 9 . . . . . . . . . . 3 . . . Critical Parts Destroyed 57 | . . . 1 . . . 2 . 3 1 1 . 1 . 1 . . 1 . 7 . 2 2 9 . . 18 . . . . . . . 1 1 . 6 . . . Critical Strikes 165 | . 6 . 4 4 5 1 3 . 4 1 2 . 2 . 2 . . 1 1 9 . 9 4 13 2 1 31 . . . 1 6 . 12 5 3 2 20 . . 11 Burn 7 | . 5 . 2 . . . . . . . . . . . . . . . . . . . . . . . . . . . . . . . . . . . . . . Destroy 83 | . . . 2 1 . . 3 . 3 . 2 . 2 . 1 . . 1 . 9 . 4 3 11 2 1 28 . . . . . . . . 1 . 9 . . . Blast 14 | . . . . 3 3 1 . . . . . . . . . . . . . . . . . . . . . . . . . . . . 3 . . 2 . . 2 Corrupt 1 | . 1 . . . . . . . . . . . . . . . . . . . . . . . . . . . . . . . . . . . . . . . . Smash 2 | . . . . . . . . . 1 1 . . . . . . . . . . . . . . . . . . . . . . . . . . . . . . . Sever 14 | . . . . . 2 . . . . . . . . . . . . . . . . . . . . . . . . . . . . 3 . . 2 7 . . . Impale 43 | . . . . . . . . . . . . . . . 1 . . . 1 . . 5 1 2 . . 3 . . . 1 6 . 9 1 2 . 2 . . 9 Detonate 1 | . . . . . . . . . . . . . . . . . . . . . . . . . . . . . . . . . . . 1 . . . . . . Melee Attacks 851 | . . 7 1 2 26 26 4 . 23 3 2 1 9 22 29 15 . 10 4 12 . 25 16 35 2 2 29 10 16 7 19 49 5 130 38 8 37 87 40 31 69 Impact 14 | . . . . . . . . . 9 3 2 . . . . . . . . . . . . . . . . . . . . . . . . . . . . . . Slashing 292 | . . 7 1 . 26 26 3 . . . . . . . . . . . . . . . . . . . . . . . . 3 5 49 . . 26 64 28 27 27 Piercing 539 | . . . . . . . . . 14 . . 1 9 22 26 15 . 10 4 12 . 25 16 35 2 2 29 10 16 7 19 46 . 81 38 8 11 23 12 4 42 Sneak Attacks 127 | . . . . 2 1 1 1 . 5 1 . . . 3 5 15 . . 1 4 . 9 5 . 1 2 4 6 4 . 2 13 . 21 . 2 1 . 10 1 7 Combat Hostiles 5 | . . . . . . . . . . . . . . . . . . . . . . . . . . . . . . . . . . 3 . . . . . . 2 Follow-up Attacks 27 | . . . . . . . . . . . . . . . . . . . . . . . . . . . . . . . . . . 7 . . 3 11 3 2 1 Damage Inflicted 67813 | 153 1356 196 2598 2357 3561 1181 1034 913 2410 128 278 . 572 231 1364 1152 . 847 154 1352 500 1886 1483 4137 844 370 3990 649 374 81 1192 2255 970 5096 2472 599 1500 8230 1992 944 6412 Guns 22456 | 153 1321 116 2457 321 . 166 901 913 1857 . 278 . 292 . 359 113 . 662 . 719 . 823 381 3072 735 187 3407 176 . 81 1004 586 201 . 430 338 . . . . 407 Cannons 11755 | . . . . 2036 2250 937 83 . . . . . . . . . . . . 166 . . . . . . . . . . . . . 490 1002 . . 3509 34 . 1248 Explosions 4200 | . . 67 91 . . . . . 62 . . . 205 . 617 . . 185 . . 500 . 623 . . . . . . . . . . . 38 . . . . . 1812 Melee 29290 | . . . . . 1311 64 50 . 491 128 . . 75 231 388 1039 . . 154 467 . 1063 479 1065 109 183 583 473 374 . 188 1669 769 4606 1002 261 1500 4721 1958 944 2945 Ramming 112 | . 35 13 50 . . 14 . . . . . . . . . . . . . . . . . . . . . . . . . . . . . . . . . . . Kinetic 30417 | 153 487 . 1795 2357 2250 1103 984 913 1857 . 278 . 292 . 359 113 . 662 . 885 . 823 381 3072 735 187 3407 176 . 81 1004 586 201 490 1269 338 . 1709 34 . 1436 Thermal 2841 | . 483 67 491 . . . . . . . . . . . . . . . . . . . . . . . . . . . . . . . . . . 1800 . . . Explosive 2819 | . . . . . . . . . . . . . 205 . 617 . . 185 . . . . . . . . . . . . . . . . . . . . . . 1812 Electromagnetic 1952 | . 351 116 262 . . . . . 62 . . . . . . . . . . . 500 . 623 . . . . . . . . . . . 38 . . . . . . Impact 390 | . . . . . . . . . 262 128 . . . . . . . . . . . . . . . . . . . . . . . . . . . . . . . Slashing 15412 | . . . . . 1311 64 50 . . . . . . . . . . . . . . . . . . . . . . . . . 769 3267 . . 1426 4271 1806 881 1567 Piercing 13488 | . . . . . . . . . 229 . . . 75 231 388 1039 . . 154 467 . 1063 479 1065 109 183 583 473 374 . 188 1669 . 1339 1002 261 74 450 152 63 1378 Entropic 382 | . . . . . . . . . . . . . . . . . . . . . . . . . . . . . . . . . . . 163 . . . . . 219 Highest Corruption 38 | . . . . . 1 1 . . 7 7 7 7 . . 1 1 1 1 6 6 36 38 8 11 . . 9 9 9 9 . 2 2 10 19 . 3 . . 6 29 Average Corruption 6 | . . . . . 1 1 . . 6 7 7 7 . . 1 1 1 1 3 6 23 26 6 9 . . 1 9 9 9 . 1 2 6 11 . 2 . . 4 21 Corruption Purged 35 | . . . . . . . . . . . . . . . . . . . . . . 32 . . . . . . . . . . . . . . 3 . . . . Corruption Blocked . | . . . . . . . . . . . . . . . . . . . . . . . . . . . . . . . . . . . . . . . . . . Effects 456 | . . . . . 21 16 . . 43 10 8 1 . . 4 3 1 4 4 21 5 25 17 43 . . 7 14 14 . . 5 5 46 34 . . . . 4 101 Message Errors 100 | . . . . . 6 2 . . 7 3 3 1 . . 1 1 . 2 . 5 3 3 4 9 . . 1 1 4 . . 1 4 10 7 . . . . 3 19 Matter Fused 99 | . . . . . 2 4 . . 8 3 . . . . 1 . . 1 3 6 . 8 3 14 . . 2 2 2 . . 1 . 13 4 . . . . . 22 Heat Flow Errors 50 | . . . . . 3 2 . . 6 . 2 . . . . . . . . 1 . 4 1 7 . . 1 . . . . 1 . 4 5 . . . . 1 12 Energy Discharges 68 | . . . . . 4 4 . . 7 3 . . . . 1 1 . 1 . 2 1 4 3 5 . . . 3 2 . . 2 1 8 7 . . . . . 9 Parts Rejected 6 | . . . . . 1 . . . . . . . . . . . . . . . . . . . . . 1 . . . . . . . 1 . . . . . 3 Parts Fused 5 | . . . . . . . . . . . . . . . . . . . 1 . . . 2 . . . . . . . . . . . . . . . . . 2 Data Loss (minor) 57 | . . . . . 3 2 . . 7 1 2 . . . . 1 1 . . 5 . 3 . 3 . . 2 3 4 . . . . 5 4 . . . . . 11 Data Loss (major) 19 | . . . . . 1 . . . 2 . . . . . 1 . . . . 2 1 1 1 1 . . . 4 1 . . . . 2 . . . . . . 2 Misfires 10 | . . . . . 1 2 . . 1 . . . . . . . . . . . . . 1 1 . . . . 1 . . . . 2 1 . . . . . . Alerts 9 | . . . . . . . . . 1 . 1 . . . . . . . . . . . 2 . . . . 1 . . . . . . 2 . . . . . 2 Misdirections 19 | . . . . . . . . . . . . . . . . . . . . . . . . 1 . . . . . . . . . 1 2 . . . . . 15 Weapon Failures 14 | . . . . . . . . . 4 . . . . . . . . . . . . 2 . 2 . . . . . . . . . 1 1 . . . . . 4 Overload Shots . | . . . . . . . . . . . . . . . . . . . . . . . . . . . . . . . . . . . . . . . . . . Overflow Damage 7279 | . . . . . 195 117 24 . 77 128 . . 64 124 111 115 . . 181 36 . 505 70 70 . 29 290 81 . . 189 530 393 1130 142 169 309 915 407 265 613 Projectiles 763 | . . . . . 29 65 9 . . . . . . . . . . . . . . . . . . . . . . . . . . 11 . . . 639 . . 10 Explosions 212 | . . . . . . . . . 4 . . . 7 . 43 . . . . . . . 70 . . . . . . . . . . . . . . . . . 88 Melee 6304 | . . . . . 166 52 15 . 73 128 . . 57 124 68 115 . . 181 36 . 505 . 70 . 29 290 81 . . 189 530 393 1119 142 169 309 276 407 265 515 Knockbacks 70 | . 1 . . 9 14 9 1 . . . . . . . . . . . . . . . . . . . . . . . . . . 7 6 . . 7 1 . 15 Impact 1 | . 1 . . . . . . . . . . . . . . . . . . . . . . . . . . . . . . . . . . . . . . . . Kinetic 61 | . . . . 8 14 6 1 . . . . . . . . . . . . . . . . . . . . . . . . . . 5 6 . . 6 1 . 14 Secondary 8 | . . . . 1 . 3 . . . . . . . . . . . . . . . . . . . . . . . . . . . 2 . . . 1 . . 1 Self-Inflicted Damage 768 | . . . 39 . . . . . 67 . . . . . . . . . . . . . 98 . . . . . . . . . . . 36 . . . . . 528 Shots 13 | . . . 1 . . . . . 2 . . . . . . . . . . . . . 1 . . . . . . . . . . . 1 . . . . . 8 Rammed 17 | . 6 3 4 . . 4 . . . . . . . . . . . . . . . . . . . . . . . . . . . . . . . . . . . Targets Rammed 18 | . 6 3 4 . . 5 . . . . . . . . . . . . . . . . . . . . . . . . . . . . . . . . . . . Kicked . | . . . . . . . . . . . . . . . . . . . . . . . . . . . . . . . . . . . . . . . . . . Crushed 1 | . . . . . . 1 . . . . . . . . . . . . . . . . . . . . . . . . . . . . . . . . . . . Highest Temperature 390 | . 325 160 390 296 263 185 79 197 235 . 270 . 373 . . 1 . 221 . 170 24 275 120 318 299 298 195 . . 11 49 310 316 325 344 309 204 234 313 . 217 Average Temperature 72 | . 69 81 69 65 66 63 27 97 54 . 82 . 182 . . 1 . 83 . 87 11 83 32 106 80 66 51 . . 6 14 70 95 82 86 79 110 102 42 . 83 Received Heat Transfer 3309 | . 357 . 273 201 151 72 192 27 207 . 81 . 36 9 36 . . 33 . 162 . 18 60 195 57 . 266 . . . 72 78 . 138 63 . . 54 27 9 435 Effects 12 | . 1 . . . 1 . . . 1 . . . 2 . . . . . . . . . . . 1 . . . . . . 1 . 4 . . . . . . 1 Shutdowns 1 | . . . . . . . . . . . . . 1 . . . . . . . . . . . . . . . . . . . . . . . . . . . . Energy Bleed 6 | . . . . . 1 . . . 1 . . . . . . . . . . . . . . . 1 . . . . . . 1 . 1 . . . . . . 1 Interference 3 | . . . . . . . . . . . . . . . . . . . . . . . . . . . . . . . . . . 3 . . . . . . . Short Circuit 2 | . 1 . . . . . . . . . . . 1 . . . . . . . . . . . . . . . . . . . . . . . . . . . . Siege Activations . | . . . . . . . . . . . . . . . . . . . . . . . . . . . . . . . . . . . . . . . . . . Martial Activations . | . . . . . . . . . . . . . . . . . . . . . . . . . . . . . . . . . . . . . . . . . . Shielding Activations . | . . . . . . . . . . . . . . . . . . . . . . . . . . . . . . . . . . . . . . . . . . Robots Disrupted . | . . . . . . . . . . . . . . . . . . . . . . . . . . . . . . . . . . . . . . . . . . Combat Hostiles . | . . . . . . . . . . . . . . . . . . . . . . . . . . . . . . . . . . . . . . . . . . Robots Corrupted 9 | . . 1 . . . . . . 2 . . . . . . . . . . . 4 . 1 . . . . . . . . . . . . . . . . . 1 Combat Hostiles 7 | . . 1 . . . . . . . . . . . . . . . . . . 4 . 1 . . . . . . . . . . . . . . . . . 1 Parts Fried 20 | . . 1 1 . . 1 . . 1 . . . . . . . . . . . 5 . 9 . . . . . . . . . . . . . . . 2 . . Impact Corruptions 7 | . . . . . . 1 . . 3 2 . . . . . . . . . . . . . . . . . . . . . . . . . . . . . . 1 Robots Melted . | . . . . . . . . . . . . . . . . . . . . . . . . . . . . . . . . . . . . . . . . . . Combat Hostiles . | . . . . . . . . . . . . . . . . . . . . . . . . . . . . . . . . . . . . . . . . . . Parts Melted 4 | . 1 . 1 . . . . . . . . . . . . . . . . . . . . . . . 2 . . . . . . . . . . . . . . Heat Transferred 2999 | . 1813 50 1136 . . . . . . . . . . . . . . . . . . . . . . . . . . . . . . . . . . . . . . Parts Sabotaged 3 | . . . . . . . . . . . . . . . . . . . . . . . . . . . 3 . . . . . . . . . . . . . . Parts Stolen . | . . . . . . . . . . . . . . . . . . . . . . . . . . . . . . . . . . . . . . . . . . Parts Stripped . | . . . . . . . . . . . . . . . . . . . . . . . . . . . . . . . . . . . . . . . . . . Power Chain Reactions 4 | . . 1 2 . . . . . . . . . . . 1 . . . . . . . . . . . . . . . . . . . . . . . . . . Alert | -11 -10 -10 -9 -9 -9 -9 -7 -7 -7 -7 -7 -7 -7 -6 -6 -6 -6 -6 -6 -6 -6 -6 -6 -6 -5 -5 -5 -5 -5 -5 -4 -4 -4 -4 -4 -3 -3 -3 -2 -2 -2 ------- Run | Yrd Mat Min Mat Sto Gar Rec Fac Was Fac Low Low Zio Dee Pro Fac Was Fac Gar Fac Ext Cet Arc Hub Gar Fac Was Fac Upp Upp War Pro Fac Was Fac Gar Res Qua Gar Res Tes Frg Maximum Alert Level 5 | . 1 . 1 1 5 3 3 1 4 . . . . . 3 1 . 3 2 1 . . 2 4 3 1 4 . . . . 2 . 3 4 3 2 5 4 3 3 Low Security (%) 33 | 100 96 100 31 85 8 . . 93 14 . . . . . 19 8 100 11 . 8 100 100 86 . . 82 6 . . . . . 100 4 . . . . . . . Level 1 16 | . 3 . 68 14 23 . . 6 30 . . . . . 32 91 . 17 . 91 . . 9 . . 17 8 . . . . . . 22 . . 5 3 . . . Level 2 21 | . . . . . 8 45 73 . 21 . . . . . 19 . . 40 100 . . . 4 26 35 . 40 . . . . 100 . 36 24 43 94 19 . 29 83 Level 3 18 | . . . . . 25 54 26 . 30 . . . . . 28 . . 31 . . . . . 33 64 . 26 . . . . . . 36 65 56 . 37 . 70 16 Level 4 7 | . . . . . 15 . . . 2 . . . . . . . . . . . . . . 39 . . 17 . . . . . . . 9 . . 15 100 . . Level 5 2 | . . . . . 19 . . . . . . . . . . . . . . . . . . . . . . . . . . . . . . . . 23 . . . High Security . | . . . . . . . . . . . . . . . . . . . . . . . . . . . . . . . . . . . . . . . . . . Max Security . | . . . . . . . . . . . . . . . . . . . . . . . . . . . . . . . . . . . . . . . . . . Peak Influence 2250 | 10 205 72 349 362 2099 944 802 252 1113 . . . . . 937 328 130 962 512 368 192 168 596 1431 754 251 1357 . . . . 615 152 993 1164 738 492 2250 1324 1051 779 Initial 1265 | . . 72 . 135 81 944 493 252 . . . . . . 165 313 130 70 504 238 137 56 . 417 751 251 25 . . . . 428 152 16 507 654 414 355 1265 652 591 Average 486 | 2 47 3 227 154 944 687 640 27 506 . . . . . 476 267 118 547 472 267 163 86 143 920 703 138 681 . . . . 491 89 582 838 693 427 1139 1233 815 650 Influence Increases 25658 | 25 672 13 969 958 2068 362 1031 12 1923 . 340 . . 140 1386 43 . 1062 172 565 85 192 856 1114 257 24 2186 275 . 53 422 834 2 2307 767 224 442 1935 346 681 915 Destroy 0b10 Robot/C 8260 | . 380 . 600 520 660 100 200 . 580 . 40 . . 20 180 . . 380 60 240 80 80 100 480 80 . 720 100 . 20 280 140 . 440 360 80 60 720 40 60 460 Destroy 0b10 Robot/NC 1105 | 25 40 . 100 95 35 55 20 . 65 . 5 . . . 25 . . . 10 35 5 45 55 35 10 . 85 . . . 15 70 . 120 5 15 25 30 40 15 25 Destroy Leader 1454 | . 88 . 168 166 20 . 26 . 162 . 10 . . . 48 . . 20 10 30 . . 44 50 20 . 182 10 . . 40 54 . 106 50 12 16 60 26 14 22 Allied During Kill 1150 | . . . . . 7 . . . 12 . . . . . . . . 363 6 61 . . . 4 . . 420 . . 3 27 . . 222 . . . 4 . 21 . Trap Triggered on 0b10 30 | . . . . . . . 10 . 20 . . . . . . . . . . . . . . . . . . . . . . . . . . . . . . . . Successful Hack 1372 | . 40 . 19 34 . 22 10 . 230 . . . . . 85 . . . 24 9 . . 77 . 31 . 195 . . . . 42 . 185 14 34 205 . . 116 . Select Force Hacks 290 | . 60 . . . . 180 . . . . . . . . 50 . . . . . . . . . . . . . . . . . . . . . . . . . . Disable Machine 1050 | . 15 . 15 60 30 . 30 . 105 . . . . . 60 . . 30 . 45 . 60 45 15 15 . 90 . . . . 15 . 75 75 . 75 60 . 45 90 Anti-Garrison Action 2300 | . . . . . 1300 . . . . . . . . . . . . 200 . . . . . 250 . . . . . . . . . . 150 . . 400 . . . Destroy Structure 1822 | . 4 13 7 8 1 5 . 12 59 . . . . . 53 28 . 69 2 25 . 7 100 175 26 24 194 . . . . 48 2 214 83 8 16 421 45 65 108 Advance Influence 750 | . . . . . . . 300 . . . . . . . 150 . . . . . . . . . . . . . . . . 300 . . . . . . . . . Partial Spotted 1470 | . . . 15 . . . 15 . 90 . . . . . 240 15 . . 45 15 . . 150 30 15 . 30 . . . . 120 . 180 15 30 45 60 90 165 105 Lose Combat Pursuer 4605 | . 45 . 45 75 15 . 420 . 600 . 285 . . 120 495 . . . 15 105 . . 285 75 60 . 270 165 . 30 60 45 . 765 15 45 . 180 105 180 105 Influence Decreases 24999 | 25 487 198 649 1153 94 1999 773 732 816 571 183 693 . 115 514 754 86 200 648 804 190 334 260 279 970 705 908 735 463 445 218 602 414 1606 328 650 706 159 1435 791 1307 Entered New Map 10896 | . . 113 . 185 44 1155 269 468 . 411 103 693 . . 10 584 56 30 458 248 110 86 . 179 680 467 12 487 163 392 . 76 284 8 218 510 324 119 985 509 460 Time Decay 9480 | 25 467 75 649 658 . 684 294 164 531 160 80 . . 95 334 170 30 . 110 356 60 248 202 . 120 198 506 238 230 53 178 326 130 538 . 110 222 . 440 222 577 Search Patrol Dispatched 900 | . . . . . . . 150 . . . . . . . 150 . . . . . . . . . . . . . . . . 150 . 450 . . . . . . . Lost Part 1050 | . 20 10 . 10 30 10 60 . 60 . . . . . 10 . . 10 . 60 20 . 20 80 10 . 80 10 10 . 10 50 . 30 110 30 10 20 10 . 270 Lost Ally 1615 | . . . . . 20 . . 100 225 . . . . 20 10 . . 160 80 140 . . 30 20 10 40 310 . 60 . 30 . . 280 . . . 20 . 60 . Purge Threat 1058 | . . . . 300 . 150 . . . . . . . . . . . . . . . . 8 . 150 . . . . . . . . 300 . . 150 . . . . Squads Dispatched 108 | . 3 . 2 2 . . 4 . 16 . . . . . 11 . . . 3 2 . . 8 . 4 . 16 . . . . 5 . 15 . 3 3 . . 5 6 Investigation 40 | . 3 . 1 1 . . 2 . 5 . . . . . 5 . . . 1 1 . . . . 2 . 6 . . . . 3 . 6 . 2 1 . . . 1 Extermination 29 | . . . . . . . 2 . 6 . . . . . 2 . . . 1 . . . 2 . . . 1 . . . . 1 . 5 . 1 2 . . 3 3 Reinforcement 27 | . . . 1 1 . . . . 1 . . . . . 4 . . . 1 1 . . 4 . 1 . 6 . . . . 1 . 4 . . . . . 2 . Assault 11 | . . . . . . . . . 4 . . . . . . . . . . . . . 2 . . . 3 . . . . . . . . . . . . . 2 Garrison 1 | . . . . . . . . . . . . . . . . . . . . . . . . . 1 . . . . . . . . . . . . . . . . Intercept . | . . . . . . . . . . . . . . . . . . . . . . . . . . . . . . . . . . . . . . . . . . Searches Triggered 6 | . . . . . . . 1 . . . . . . . 1 . . . . . . . . . . . . . . . . 1 . 3 . . . . . . . Construction Impeded 3 | . . . . . . . . . . . . . . . . . . . . 1 . . 1 . . . 1 . . . . . . . . . . . . . . Haulers Reinforced 6 | . . . . . . . . . . . . . . . . . . . . . . . . . 1 . 2 . . . . . . 2 . . . . . 1 . Active Scanning Responses . | . . . . . . . . . . . . . . . . . . . . . . . . . . . . . . . . . . . . . . . . . . Cargo Convoy Interrupts 1 | . . . . . . . . . 1 . . . . . . . . . . . . . . . . . . . . . . . . . . . . . . . . Stealth | -11 -10 -10 -9 -9 -9 -9 -7 -7 -7 -7 -7 -7 -7 -6 -6 -6 -6 -6 -6 -6 -6 -6 -6 -6 -5 -5 -5 -5 -5 -5 -4 -4 -4 -4 -4 -3 -3 -3 -2 -2 -2 --------- Run | Yrd Mat Min Mat Sto Gar Rec Fac Was Fac Low Low Zio Dee Pro Fac Was Fac Gar Fac Ext Cet Arc Hub Gar Fac Was Fac Upp Upp War Pro Fac Was Fac Gar Res Qua Gar Res Tes Frg Distress Signals 42 | . 2 . 4 4 . . 3 . . . . . . . 3 . . . 1 2 1 . 4 . . . 2 . . 1 . 1 . 7 . 1 . . 5 1 . Communications Jammed . | . . . . . . . . . . . . . . . . . . . . . . . . . . . . . . . . . . . . . . . . . . Distress Signals . | . . . . . . . . . . . . . . . . . . . . . . . . . . . . . . . . . . . . . . . . . . Times Spotted 935 | . 28 3 49 31 36 3 41 10 76 3 22 . 10 4 52 4 . 16 8 21 5 16 37 28 12 6 57 12 2 26 22 23 . 77 18 15 12 38 46 22 44 Peak Tracking Total 14 | . 5 1 5 9 4 2 14 6 8 3 10 . 3 3 11 3 . 3 7 9 5 1 9 6 6 5 6 11 1 5 6 6 . 14 4 7 4 4 10 7 11 Tactical Retreats 132 | . 3 1 1 1 1 . 10 2 20 . 6 . 1 3 14 1 . . 1 2 . . 8 3 1 . 9 3 . 1 2 1 . 16 1 2 . 7 3 5 3 Traps | -11 -10 -10 -9 -9 -9 -9 -7 -7 -7 -7 -7 -7 -7 -6 -6 -6 -6 -6 -6 -6 -6 -6 -6 -6 -5 -5 -5 -5 -5 -5 -4 -4 -4 -4 -4 -3 -3 -3 -2 -2 -2 ------- Run | Yrd Mat Min Mat Sto Gar Rec Fac Was Fac Low Low Zio Dee Pro Fac Was Fac Gar Fac Ext Cet Arc Hub Gar Fac Was Fac Upp Upp War Pro Fac Was Fac Gar Res Qua Gar Res Tes Frg Traps Triggered 71 | . . . 1 4 8 . 3 . 9 . 1 . . . 3 . . 1 1 3 . . . 5 1 . 7 . . . . 1 . 4 9 . . 7 . . 3 Indirectly . | . . . . . . . . . . . . . . . . . . . . . . . . . . . . . . . . . . . . . . . . . . Trap Hack Attempts 46 | . . . . 14 23 . 9 . . . . . . . . . . . . . . . . . . . . . . . . . . . . . . . . . . Triggered . | . . . . . . . . . . . . . . . . . . . . . . . . . . . . . . . . . . . . . . . . . . Disarmed 5 | . . . . . 1 . . . . . . . . . 4 . . . . . . . . . . . . . . . . . . . . . . . . . . Reprogrammed 3 | . . . . 1 1 . 1 . . . . . . . . . . . . . . . . . . . . . . . . . . . . . . . . . . Reused 3 | . . . . . . . 1 . 2 . . . . . . . . . . . . . . . . . . . . . . . . . . . . . . . . Traps Extracted 3 | . . . . . . . . . 3 . . . . . . . . . . . . . . . . . . . . . . . . . . . . . . . . Installed 7 | . . . . . . . . . 7 . . . . . . . . . . . . . . . . . . . . . . . . . . . . . . . . Triggered 3 | . . . . . . . 1 . 2 . . . . . . . . . . . . . . . . . . . . . . . . . . . . . . . . Most Traps Carried 4 | . . . . . 4 4 4 4 4 . 2 1 1 . . . . . . . . . . . . . . . . . . . . . . . . . . . . Machines | -11 -10 -10 -9 -9 -9 -9 -7 -7 -7 -7 -7 -7 -7 -6 -6 -6 -6 -6 -6 -6 -6 -6 -6 -6 -5 -5 -5 -5 -5 -5 -4 -4 -4 -4 -4 -3 -3 -3 -2 -2 -2 ---------- Run | Yrd Mat Min Mat Sto Gar Rec Fac Was Fac Low Low Zio Dee Pro Fac Was Fac Gar Fac Ext Cet Arc Hub Gar Fac Was Fac Upp Upp War Pro Fac Was Fac Gar Res Qua Gar Res Tes Frg Machines Disabled 110 | . 1 . 1 4 10 . 2 . 7 . . 4 1 . 4 . . 5 . 3 . 4 3 8 1 . 6 . 1 1 . 1 . 5 8 . 5 13 . 3 9 Max in Single Turn 3 | . 1 . 1 1 1 . 1 . 3 . . 1 . . 2 . . 1 . 1 . 1 2 2 1 . 1 . 1 1 . 1 . 1 1 . 1 2 . 1 1 Garrison Access 13 | . . . . . . . 2 . 1 . . . . . . . . . 1 . . . 1 . . . 1 . . . . 2 . 1 . 1 . . 2 1 . Garrison Relay 18 | . . . . . 5 . . . . . . . . . . . . 3 . . . . . 3 . . . . . . . . . . 3 . . 4 . . . Phase Generator 3 | . . . . . 1 . . . . . . . . . . . . . . . . . . 1 . . . . . . . . . . . . . 1 . . . Network Hub 2 | . . . . . . . . . . . . . . . . . . . . . . . 2 . . . . . . . . . . . . . . . . . . Machines Repaired . | . . . . . . . . . . . . . . . . . . . . . . . . . . . . . . . . . . . . . . . . . . Machines Dismantled 9 | . . . . . 2 . . . . . . 4 . . . . . . . 2 . . . . . . . . . 1 . . . . . . . . . . . Machines Sabotaged . | . . . . . . . . . . . . . . . . . . . . . . . . . . . . . . . . . . . . . . . . . . Overloaded Fab Kills 2 | . . . . . . . . . . . . . . . 2 . . . . . . . . . . . . . . . . . . . . . . . . . . Hacking | -11 -10 -10 -9 -9 -9 -9 -7 -7 -7 -7 -7 -7 -7 -6 -6 -6 -6 -6 -6 -6 -6 -6 -6 -6 -5 -5 -5 -5 -5 -5 -4 -4 -4 -4 -4 -3 -3 -3 -2 -2 -2 --------- Run | Yrd Mat Min Mat Sto Gar Rec Fac Was Fac Low Low Zio Dee Pro Fac Was Fac Gar Fac Ext Cet Arc Hub Gar Fac Was Fac Upp Upp War Pro Fac Was Fac Gar Res Qua Gar Res Tes Frg Machines Accessed 251 | . 11 . 12 13 1 13 12 . 26 1 1 . . . 21 . 1 2 6 6 . . 13 2 5 . 17 1 . 6 . 12 . 29 1 9 11 1 3 12 3 Terminals 138 | . 8 . 8 9 1 6 5 . 15 . . . . . 8 . . 2 3 6 . . 11 2 2 . 8 . . . . 4 . 17 1 3 7 1 1 8 2 Fabricators 32 | . . . . . . . 2 . 4 . . . . . 6 . . . 2 . . . . . 2 . 4 . . . . 4 . 5 . 1 . . . 2 . Repair Stations 17 | . 1 . 2 2 . . 1 . 1 . . . . . 3 . . . . . . . . . . . 1 . . . . . . 2 . 1 2 . . . 1 Recycling Units 12 | . 2 . . 1 . 7 . . . . . . . . . . . . . . . . . . . . . . . . . . . . . 2 . . . . . Scanalyzers 19 | . . . 2 . . . 1 . 4 . . . . . 2 . . . . . . . . . 1 . 2 . . . . 2 . 3 . . 1 . . 1 . Garrison Access 24 | . . . . 1 . . 3 . 2 . . . . . 2 . 1 . 1 . . . 2 . . . 2 . . . . 2 . 2 . 2 1 . 2 1 . Total Hacks 867 | . 29 . 40 35 1 40 26 . 69 1 1 . . . 50 . 2 3 13 17 . . 32 5 17 . 73 1 . 16 . 78 . 150 3 34 60 3 9 51 8 Successful 370 | . 18 . 25 18 1 18 6 . 36 1 1 . . . 27 . 1 2 7 7 . . 16 2 13 . 33 1 . 16 . 32 . 47 1 7 18 . 2 12 2 Failed 497 | . 11 . 15 17 . 22 20 . 33 . . . . . 23 . 1 1 6 10 . . 16 3 4 . 40 . . . . 46 . 103 2 27 42 3 7 39 6 Catastrophic 131 | . 1 . 3 5 . 2 5 . 8 . . . . . 5 . 1 1 . 4 . . 1 1 . . 9 . . . . 9 . 33 1 10 18 2 1 9 2 Database Lockouts . | . . . . . . . . . . . . . . . . . . . . . . . . . . . . . . . . . . . . . . . . . . Manual 318 | . 22 . 15 11 1 24 9 . 22 . . 1 . . 14 . 1 2 5 10 . . 15 1 6 . 28 . . . . 28 . 66 1 11 9 3 3 6 4 Terminals 495 | . 22 . 26 21 1 18 13 . 37 . . . . . 17 . . 3 5 17 . . 26 5 7 . 40 . . . . 26 . 102 3 15 39 3 4 41 4 Fabricators 108 | . . . . . . . 3 . 9 . . . . . 11 . . . 7 . . . . . 5 . 16 . . . . 23 . 24 . 3 . . . 7 . Repair Stations 52 | . 5 . 5 6 . . 2 . 3 . . . . . 6 . . . . . . . . . . . 3 . . . . . . 2 . 7 9 . . . 4 Recycling Units 33 | . 2 . . 3 . 22 . . . . . . . . . . . . . . . . . . . . . . . . . . . . . 6 . . . . . Scanalyzers 106 | . . . 9 . . . 2 . 17 . . . . . 13 . . . . . . . . . 5 . 10 . . . . 25 . 14 . . 9 . . 2 . Garrison Access 54 | . . . . 5 . . 6 . 3 . . . . . 3 . 2 . 1 . . . 6 . . . 4 . . . . 4 . 8 . 3 3 . 5 1 . Terminal Hacks 149 | . 4 . 7 7 . 2 1 . 14 1 1 . . . 6 . . 1 2 6 . . 9 2 3 . 11 1 . 16 . 5 . 26 1 2 12 . 1 7 1 Record 16 | . . . . . . . . . . . . . . . . . . . . . . . . . . . . . . 15 . . . 1 . . . . . . . Part Schematic 15 | . 2 . 2 1 . . . . 4 . . . . . . . . . . . . . 2 . . . 3 . . . . . . 1 . . . . . . . Robot Schematic 2 | . 1 . . . . 1 . . . . . . . . . . . . . . . . . . . . . . . . . . . . . . . . . . . Robot Analysis 1 | . . . 1 . . . . . . . . . . . . . . . . . . . . . . . . . . . . . . . . . . . . . . Prototype ID Bank 18 | . . . 3 1 . . . . 2 . . . . . 1 . . . . 3 . . . . 1 . 1 . . . . . . 3 . . 2 . . 1 . Open Door 10 | . . . . 3 . . . . . 1 1 . . . . . . . . 1 . . . 1 . . . 1 . 1 . . . . . 1 . . . . . Open DSF 1 | . . . . . . . . . . . . . . . . . . . . . . . . . . . . . . . . . . . . . . . 1 . . Level Access Points 2 | . . . . . . . . . . . . . . . . . . . . . . . 1 . . . . . . . . . . . . 1 . . . . . Branch Access Points 5 | . . . . . . . . . 2 . . . . . . . . . . . . . . . . . 1 . . . . 1 . 1 . . . . . . . Emergency Access Points 6 | . . . . . . . . . . . . . . . 1 . . . . . . . 1 1 . . . . . . . 1 . 1 1 . . . . . . Machine Index 2 | . . . . . . . . . . . . . . . . . . . . . . . 1 . . . 1 . . . . . . . . . . . . . . Terminal Index 5 | . . . . . . . . . 1 . . . . . . . . . 1 . . . . . . . . . . . . 1 . 1 . . . . . 1 . Fabricator Index 2 | . . . . . . . . . 1 . . . . . . . . . . . . . . . . . . . . . . . . 1 . . . . . . . Repair Station Index 3 | . . . . . . . . . . . . . . . 1 . . . . . . . . . . . . . . . . . . 1 . . 1 . . . . Scanalyzer Index 3 | . . . . . . . . . 1 . . . . . . . . . . . . . . . . . . . . . . 1 . 1 . . . . . . . Garrison Index 3 | . . . . . . . . . . . . . . . . . . . . . . . 1 . . . . . . . . . . 1 . . 1 . . . . Alert Level 5 | . . . . . . . 1 . . . . . . . . . . . . . . . . . . . . . . . . . . 3 . . . . . 1 . Unreport Threat 8 | . . . . 2 . 1 . . . . . . . . . . . . . . . . 1 . 1 . . . . . . . . 2 . . 1 . . . . Locate Traps 19 | . 1 . . . . . . . . . . . . . 2 . . . 1 1 . . 1 . 1 . 3 . . . . 1 . 4 . . 2 . . 2 . Disarm Traps 1 | . . . . . . . . . . . . . . . 1 . . . . . . . . . . . . . . . . . . . . . . . . . . Maintenance Status 3 | . . . . . . . . . 1 . . . . . . . . . . . . . . . . . . . . . . . . 1 . . 1 . . . . Recall Investigation 1 | . . . . . . . . . . . . . . . . . . . . . . . . . . . 1 . . . . . . . . . . . . . . Hauler Manifests 7 | . . . 1 . . . . . . . . . . . . . . . . . . . 1 . . . . . . . . . . 2 . . 2 . . 1 . Registered Components 3 | . . . . . . . . . . . . . . . . . . . . . . . . . . . 1 . . . . . . . . . 1 . . 1 . Registered Prototypes 1 | . . . . . . . . . 1 . . . . . . . . . . . . . . . . . . . . . . . . . . . . . . . . Zone Layout 5 | . . . . . . . . . 1 . . . . . . . . . . 1 . . . . . . . . . . . . . 2 . . 1 . . . . Garrison Registry 1 | . . . . . . . . . . . . . . . . . . 1 . . . . . . . . . . . . . . . . . . . . . . . Proto ID Catalog 1 | . . . . . . . . . . . . . . . . . . . . . . . . . . . . . . . . . . . . . . . . . 1 Fabricator Hacks 37 | . . . . . . . . . 3 . . . . . 3 . . . 3 . . . . . 3 . 7 . . . . 11 . 4 . 1 . . . 2 . Network Status 5 | . . . . . . . . . . . . . . . . . . . 1 . . . . . 1 . 1 . . . . 1 . . . . . . . 1 . Load Schematic 23 | . . . . . . . . . 2 . . . . . 3 . . . 1 . . . . . 2 . 4 . . . . 6 . 3 . 1 . . . 1 . Build 9 | . . . . . . . . . 1 . . . . . . . . . 1 . . . . . . . 2 . . . . 4 . 1 . . . . . . . Repair Station Hacks 20 | . 5 . 3 6 . . . . 2 . . . . . 1 . . . . . . . . . . . 1 . . . . . . . . . 2 . . . . Scan Component 10 | . 3 . 2 3 . . . . 1 . . . . . . . . . . . . . . . . . . . . . . . . . . . 1 . . . . Repair 8 | . 2 . 1 3 . . . . 1 . . . . . . . . . . . . . . . . . . . . . . . . . . . 1 . . . . Refit 2 | . . . . . . . . . . . . . . . 1 . . . . . . . . . . . 1 . . . . . . . . . . . . . . Recycling Unit Hacks 5 | . . . . 1 . 4 . . . . . . . . . . . . . . . . . . . . . . . . . . . . . . . . . . . Retrieve Components 5 | . . . . 1 . 4 . . . . . . . . . . . . . . . . . . . . . . . . . . . . . . . . . . . Scanalyzer 63 | . . . 9 . . . 2 . 12 . . . . . 12 . . . . . . . . . 4 . 6 . . . . 11 . 5 . . 1 . . 1 . Insert Component 32 | . . . 4 . . . 1 . 6 . . . . . 5 . . . . . . . . . 1 . 3 . . . . 7 . 3 . . 1 . . 1 . Analyze 31 | . . . 5 . . . 1 . 6 . . . . . 7 . . . . . . . . . 3 . 3 . . . . 4 . 2 . . . . . . . Garrison Access Hacks 17 | . . . . 1 . . 2 . 1 . . . . . . . 1 . 1 . . . 2 . . . 1 . . . . 2 . 2 . 1 1 . 1 1 . Unlock Access 6 | . . . . 1 . . . . . . . . . . . . 1 . . . . . 2 . . . . . . . . . . 1 . . 1 . . . . Seal Access 11 | . . . . . . . 2 . 1 . . . . . . . . . 1 . . . . . . . 1 . . . . 2 . 1 . 1 . . 1 1 . Unauthorized Hacks 79 | . 9 . 6 3 1 12 1 . 4 . . . . . 5 . . 1 1 1 . . 5 . 3 . 7 . . . . 3 . 10 . 3 2 . . 1 1 Terminals 40 | . 7 . 6 1 1 5 . . 2 . . . . . 1 . . 1 1 1 . . 5 . 1 . 1 . . . . . . 5 . 1 1 . . . . Track 3 | . . . . . . . . . . . . . . . . . . . . . . . 1 . . . . . . . . . . 1 . . 1 . . . . Assimilate 14 | . 1 . . . . . . . 2 . . . . . 1 . . . . 1 . . 4 . 1 . . . . . . . . 3 . 1 . . . . . Botnet 1 | . . . . 1 . . . . . . . . . . . . . . . . . . . . . . . . . . . . . . . . . . . . . Operators 4 | . 1 . . . . . . . . . . . . . . . . . 1 . . . . . . . 1 . . . . . . 1 . . . . . . . Skim 16 | . 5 . 6 . . 5 . . . . . . . . . . . . . . . . . . . . . . . . . . . . . . . . . . . Override 2 | . . . . . 1 . . . . . . . . . . . . 1 . . . . . . . . . . . . . . . . . . . . . . . Fabricators 18 | . . . . . . . . . 2 . . . . . 2 . . . . . . . . . 2 . 4 . . . . 3 . 3 . 1 . . . 1 . Prioritize 2 | . . . . . . . . . . . . . . . . . . . . . . . . . . . 1 . . . . 1 . . . . . . . . . Liberate 1 | . . . . . . . . . . . . . . . . . . . . . . . . . . . . . . . . . . . . . . . . 1 . Haulers 3 | . . . . . . . . . 1 . . . . . . . . . . . . . . . . . 1 . . . . . . 1 . . . . . . . Overload 1 | . . . . . . . . . . . . . . . 1 . . . . . . . . . . . . . . . . . . . . . . . . . . Recompile 11 | . . . . . . . . . 1 . . . . . 1 . . . . . . . . . 2 . 2 . . . . 2 . 2 . 1 . . . . . Repair Stations 8 | . . . . . . . 1 . . . . . . . 2 . . . . . . . . . . . . . . . . . . 2 . 1 1 . . . 1 Patch 8 | . . . . . . . 1 . . . . . . . 2 . . . . . . . . . . . . . . . . . . 2 . 1 1 . . . 1 Recycling Units 10 | . 2 . . 1 . 7 . . . . . . . . . . . . . . . . . . . . . . . . . . . . . . . . . . . Reject 2 | . . . . 1 . 1 . . . . . . . . . . . . . . . . . . . . . . . . . . . . . . . . . . . Tunnel 8 | . 2 . . . . 6 . . . . . . . . . . . . . . . . . . . . . . . . . . . . . . . . . . . Scanalyzers . | . . . . . . . . . . . . . . . . . . . . . . . . . . . . . . . . . . . . . . . . . . Garrison Access 3 | . . . . 1 . . . . . . . . . . . . . . . . . . . . . . 2 . . . . . . . . . . . . . . Redirect 2 | . . . . 1 . . . . . . . . . . . . . . . . . . . . . . 1 . . . . . . . . . . . . . . Reprogram 1 | . . . . . . . . . . . . . . . . . . . . . . . . . . . 1 . . . . . . . . . . . . . . Data Cores Recovered 6 | . . . . . . . . . 2 . . . . . . . . . . 1 . . . . . . 1 . . . . . . 1 . . 1 . . . . Used 3 | . . . . . . . . . . . . . . . . . . . . 1 . . . . . . 1 . . . . . . 1 . . . . . . . Hacking Detections 194 | . 7 . 11 10 . 11 12 . 24 . . . . . 20 . 1 1 4 6 . . 12 2 2 . 14 . . . . 9 . 20 . 6 8 1 1 11 1 Full Trace Events 13 | . 1 . 1 1 . . 1 . 4 . . . . . 1 . . . . 1 . . . . . . 1 . . . . 1 . 1 . . . . . . . Feedback Events . | . . . . . . . . . . . . . . . . . . . . . . . . . . . . . . . . . . . . . . . . . . Feedback Blocked . | . . . . . . . . . . . . . . . . . . . . . . . . . . . . . . . . . . . . . . . . . . Robot Schematics Acquired 6 | . 1 . . . . 1 . . . . . 4 . . . . . . . . . . . . . . . . . . . . . . . . . . . . . Robots Built . | . . . . . . . . . . . . . . . . . . . . . . . . . . . . . . . . . . . . . . . . . . Authchips . | . . . . . . . . . . . . . . . . . . . . . . . . . . . . . . . . . . . . . . . . . . Time . | . . . . . . . . . . . . . . . . . . . . . . . . . . . . . . . . . . . . . . . . . . Total Robot Build Rating . | . . . . . . . . . . . . . . . . . . . . . . . . . . . . . . . . . . . . . . . . . . Part Schematics Acquired 50 | . 2 . 6 1 . . 1 . 8 . . 14 . . 5 . . . . . . . 2 . 1 . 5 . . . . 2 . 3 . . . . . . . Parts Built 10 | . . . . . . . . . 1 . . . . . . . . . 1 . . . . . . . 2 . . . . 5 . 1 . . . . . . . Authchips 9 | . . . . . . . . . 1 . . . . . . . . . 1 . . . . . . . 2 . . . . 4 . 1 . . . . . . . Time 636 | . . . . . . . . . 49 . . . . . . . . . 44 . . . . . . . 100 . . . . 341 . 102 . . . . . . . Total Part Build Rating 58 | . . . . . . . . . 2 . . . . . . . . . 4 . . . . . . . 8 . . . . 36 . 8 . . . . . . . Parts Repaired 8 | . 2 . 1 3 . . . . 1 . . . . . . . . . . . . . . . . . . . . . . . . . . . 1 . . . . Time 303 | . 52 . 36 134 . . . . 32 . . . . . . . . . . . . . . . . . . . . . . . . . . . 49 . . . . Parts Recycled . | . . . . . . . . . . . . . . . . . . . . . . . . . . . . . . . . . . . . . . . . . . Recycled Matter . | . . . . . . . . . . . . . . . . . . . . . . . . . . . . . . . . . . . . . . . . . . Retrieved Matter . | . . . . . . . . . . . . . . . . . . . . . . . . . . . . . . . . . . . . . . . . . . Retrieved Components 14 | . . . . 3 . 11 . . . . . . . . . . . . . . . . . . . . . . . . . . . . . . . . . . . Parts Scanalyzed 26 | . . . 4 . . . 1 . 6 . . . . . 5 . . . . . . . . . 1 . 3 . . . . 4 . 2 . . . . . . . Part Schematics Acquired 21 | . . . 4 . . . 1 . 4 . . . . . 5 . . . . . . . . . 1 . 2 . . . . 2 . 2 . . . . . . . Parts Damaged 8 | . . . . . . . . . 2 . . . . . . . . . . . . . . . . . 1 . . . . 4 . 1 . . . . . . . Bothacking | -11 -10 -10 -9 -9 -9 -9 -7 -7 -7 -7 -7 -7 -7 -6 -6 -6 -6 -6 -6 -6 -6 -6 -6 -6 -5 -5 -5 -5 -5 -5 -4 -4 -4 -4 -4 -3 -3 -3 -2 -2 -2 ------------ Run | Yrd Mat Min Mat Sto Gar Rec Fac Was Fac Low Low Zio Dee Pro Fac Was Fac Gar Fac Ext Cet Arc Hub Gar Fac Was Fac Upp Upp War Pro Fac Was Fac Gar Res Qua Gar Res Tes Frg Used RIF Installer . | . . . . . . . . . . . . . . . . . . . . . . . . . . . . . . . . . . . . . . . . . . Robots Hacked 5 | . . . . 1 . . 1 . . . . . . . 2 . . . . . . . . . . . . . . . . 1 . . . . . . . . . Non-combat 5 | . . . . 1 . . 1 . . . . . . . 2 . . . . . . . . . . . . . . . . 1 . . . . . . . . . Combat . | . . . . . . . . . . . . . . . . . . . . . . . . . . . . . . . . . . . . . . . . . . Robot Hacks Applied 7 | . . . . 2 . . 1 . . . . . . . 3 . . . . . . . . . . . . . . . . 1 . . . . . . . . . parse_system 3 | . . . . 2 . . . . . . . . . . 1 . . . . . . . . . . . . . . . . . . . . . . . . . . find_chute 3 | . . . . . . . 1 . . . . . . . 1 . . . . . . . . . . . . . . . . 1 . . . . . . . . . find_fabricator 1 | . . . . . . . . . . . . . . . 1 . . . . . . . . . . . . . . . . . . . . . . . . . . Relay Couplers Released 75 | . . . . . 18 . . . . . . . . . . . . 12 . . . . 1 11 . . . . . . . 4 . . 12 . . 16 1 . . Machine Destruction 71 | . . . . . 18 . . . . . . . . . . . . 12 . . . . 1 11 . . . . . . . . . . 12 . . 16 1 . . Programmers 4 | . . . . . . . . . . . . . . . . . . . . . . . . . . . . . . . . 4 . . . . . . . . . Fabnet Peak Effective % . | . . . . . . . . . . . . . . . . . . . . . . . . . . . . . . . . . . . . . . . . . . Robots Rewired 21 | . . . . . 1 4 . . . . . . . . . . . . . 7 . . . . . . . . 3 5 . . . . . . . 1 . . . Allies Hacked 3 | . . . . . . . . . 1 . . . . . . . . . . . . . . . . . . . . . . . . 1 . . . . . 1 . Hacks Repelled 1 | . . . . . . . . . . . . . . . . . . . . . . . . . . . . . . . . . . 1 . . . . . . . Allies | -11 -10 -10 -9 -9 -9 -9 -7 -7 -7 -7 -7 -7 -7 -6 -6 -6 -6 -6 -6 -6 -6 -6 -6 -6 -5 -5 -5 -5 -5 -5 -4 -4 -4 -4 -4 -3 -3 -3 -2 -2 -2 -------- Run | Yrd Mat Min Mat Sto Gar Rec Fac Was Fac Low Low Zio Dee Pro Fac Was Fac Gar Fac Ext Cet Arc Hub Gar Fac Was Fac Upp Upp War Pro Fac Was Fac Gar Res Qua Gar Res Tes Frg Total Allies 125 | . 1 . . . 1 4 . 20 2 . . 2 . . 1 19 . . . 10 . . 4 1 1 20 4 . 3 5 . . 20 2 . 1 . 1 . 3 . Largest Group 20 | . 1 1 . . 1 4 . 19 12 . . 2 2 1 1 19 16 16 7 5 . . 2 1 1 19 17 . 3 5 5 . 20 20 . 1 . 1 . 3 . Highest-Rated Group 684 | . 10 10 . . 24 40 . 475 334 . . 192 192 96 26 678 559 559 250 240 . . 36 29 26 684 584 . 90 320 320 . 672 672 . 45 . 85 . 174 . Highest-Rated Ally 159 | . 10 10 . . 24 14 . 35 31 . . 96 96 96 26 50 46 46 46 159 . . 26 29 26 50 46 . 30 64 64 . 46 46 . 45 . 85 . 58 . Initial Warlord ECA Mod 609 | . . . . . . 13 11 11 11 11 11 11 11 10 10 10 10 10 15 15 15 15 15 14 20 20 20 20 20 20 19 19 19 19 19 23 23 23 32 32 32 Warlord Squad Rendezvous 1 | . . . . . . . . . . . . . . . . . . . . . . . 1 . . . . . . . . . . . . . . . . . . Geek 1 | . . . . . . . . . . . . . . . . . . . . . . . 1 . . . . . . . . . . . . . . . . . . Total Orders 6 | . . . . . . 1 . . . . . . . . . . . . . . . . 1 . . . . . . 2 2 . . . . . . . . . . STAY 4 | . . . . . . 1 . . . . . . . . . . . . . . . . 1 . . . . . . 1 1 . . . . . . . . . . FOLLOW 2 | . . . . . . . . . . . . . . . . . . . . . . . . . . . . . . 1 1 . . . . . . . . . . Ally Attacks 1040 | . . . . . 7 . . 191 77 . . . 43 6 . 165 . 95 16 46 . . . 6 . 121 137 . 18 . . . . 82 . . . 11 . 19 . Total Damage 23401 | . . . . . 202 . . 3192 1226 . . . 1238 232 . 4470 . 2158 576 1450 . . . 284 . 2794 2238 . 523 . . . . 1708 . . . 427 . 683 . Kills 110 | . . . . . 4 . . 6 13 . . . 10 1 . 7 . 15 3 13 . . . 2 . 6 14 . 1 . . . . 9 . . . 4 . 2 . Allies Corrupted 11 | . . . . . . . . . 2 . . . . . . . . 1 . . . . . 1 . . 3 . . . . . . 3 . . . . . 1 . Allies Melted 2 | . . . . . . . . . . . . . . . . . . . 1 . . . . . . . . . . 1 . . . . . . . . . . . Intel | -11 -10 -10 -9 -9 -9 -9 -7 -7 -7 -7 -7 -7 -7 -6 -6 -6 -6 -6 -6 -6 -6 -6 -6 -6 -5 -5 -5 -5 -5 -5 -4 -4 -4 -4 -4 -3 -3 -3 -2 -2 -2 ------- Run | Yrd Mat Min Mat Sto Gar Rec Fac Was Fac Low Low Zio Dee Pro Fac Was Fac Gar Fac Ext Cet Arc Hub Gar Fac Was Fac Upp Upp War Pro Fac Was Fac Gar Res Qua Gar Res Tes Frg Active Infowar (turns) 14246 | 67 2884 1602 . . 657 . 108 . 289 . . . . . 2 133 64 35 10 10 22 . . . . 28 3 511 476 . . . . 931 782 237 477 1576 1095 471 1776 Optics 6414 | . . . . . . . . . . . . . . . . . . . . . . . . . . . . . . . . . . . 782 237 477 1576 1095 471 1776 Sensors 108 | . . . . . . . 108 . . . . . . . . . . . . . . . . . . . . . . . . . . . . . . . . . . IFF 4589 | . . . . . . . . . . . . . . . . . . . . . . . . . . . . 511 476 . . . . 931 . 175 477 20 970 330 699 Terrain 60 | . . . . . . . . . . . . . . . . . . . . . . . . . . . . . . . . . . . . . . . 60 . . Traps 2 | . . . . . . . . . . . . . . . 2 . . . . . . . . . . . . . . . . . . . . . . . . . . Seismic 5210 | 67 2884 1602 . . 657 . . . . . . . . . . . . . . . . . . . . . . . . . . . . . . . . . . . . T.N.C. 289 | . . . . . . . . . 289 . . . . . . . . . . . . . . . . . . . . . . . . . . . . . . . . Cloaking 302 | . . . . . . . . . . . . . . . . 133 64 35 10 10 22 . . . . 28 . . . . . . . . . . . . . . . Jamming 2 | . . . . . . . . . . . . . . . . . . . . . . . . . . . . . . . . . . 2 . . . . . . . ECM 3 | . . . . . . . . . . . . . . . . . . . . . . . . . . . 3 . . . . . . . . . . . . . . Robot Analysis Total 1 | . . . 1 . . . . . . . . . . . . . . . . . . . . . . . . . . . . . . . . . . . . . . Derelict Logs Recovered 10 | . . 1 . . . . . . . 1 . 1 . 2 . . . . . . . . . . . . . 2 1 . 2 . . . . . . . . . . Drone Launches . | . . . . . . . . . . . . . . . . . . . . . . . . . . . . . . . . . . . . . . . . . . Drone Recoveries . | . . . . . . . . . . . . . . . . . . . . . . . . . . . . . . . . . . . . . . . . . . Exploration | -11 -10 -10 -9 -9 -9 -9 -7 -7 -7 -7 -7 -7 -7 -6 -6 -6 -6 -6 -6 -6 -6 -6 -6 -6 -5 -5 -5 -5 -5 -5 -4 -4 -4 -4 -4 -3 -3 -3 -2 -2 -2 ------------- Run | Yrd Mat Min Mat Sto Gar Rec Fac Was Fac Low Low Zio Dee Pro Fac Was Fac Gar Fac Ext Cet Arc Hub Gar Fac Was Fac Upp Upp War Pro Fac Was Fac Gar Res Qua Gar Res Tes Frg Turns Passed 41429 | 164 3353 1908 3172 2472 3137 2734 655 1341 1835 326 175 705 763 341 752 349 64 445 228 817 121 562 474 1108 242 411 1379 516 495 1013 415 734 271 1529 791 237 477 1576 1095 471 1776 Spaces Moved 52206 | 75 1030 623 1129 846 1053 1046 1273 935 4256 652 384 1085 934 748 1979 543 19 635 723 1091 122 358 1221 1464 499 588 2389 935 845 1531 1155 1351 588 3825 1081 740 1469 2961 4577 1336 2112 Core 145 | 7 . . . . . . . 135 1 . . . . . . . . . . . . . . . . . . . . . 1 . . . . . . . . . 1 Treads 5600 | 68 1030 506 1045 846 1053 1046 6 . . . . . . . . . . . . . . . . . . . . . . . . . . . . . . . . . . Legs . | . . . . . . . . . . . . . . . . . . . . . . . . . . . . . . . . . . . . . . . . . . Wheels 201 | . . 117 84 . . . . . . . . . . . . . . . . . . . . . . . . . . . . . . . . . . . . . . Hover 3345 | . . . . . . . . . . . . . . . . . . . . . . . . . 383 588 2275 . . . . . . . . . . . . . 99 Flight 42915 | . . . . . . . 1267 800 4255 652 384 1085 934 748 1979 543 19 635 723 1091 122 358 1221 1464 116 . 114 935 845 1531 1154 1351 588 3825 1081 740 1469 2961 4577 1336 2012 Fastest Speed 10 | 50 160 175 190 240 240 240 28 29 26 26 26 26 26 29 23 24 24 24 24 20 24 24 24 23 24 23 20 30 47 19 19 14 14 13 13 14 17 20 15 10 10 Average Speed 50 | 149 283 295 239 240 240 240 31 84 30 26 30 26 31 29 26 24 24 25 24 24 69 33 24 34 25 24 30 47 47 23 19 16 14 13 30 15 19 20 17 14 22 Slowest Speed 1000 | 160 480 480 480 320 240 240 240 450 300 26 91 26 94 29 94 92 24 89 24 89 89 160 89 99 120 99 186 119 47 90 550 86 84 16 95 96 20 20 20 15 1000 Overloaded Moves 18 | . . . . . . . . . . . . . . . . . . . . 18 . . . . . . . . . . . . . . . . . . . . . Propulsion Burnouts . | . . . . . . . . . . . . . . . . . . . . . . . . . . . . . . . . . . . . . . . . . . Robots Hopped 186 | . . . . . . . 13 . 31 1 . . . . 23 . . 2 14 17 . . 11 1 . . 2 . . 1 2 1 1 30 . 1 3 9 15 7 1 Potential Cave-ins 30 | . . . . . . . . . . . . . . . . . . . . . . . . . . . 4 . . . . . . 3 5 . . . . . 18 Cave-ins Triggered 4 | . . . . . . . . . . . . . . . . . . . . . . . . . . . 1 . . . . . . . 1 . . . . . 2 Exploration Rate (%) 70 | 6 94 94 88 94 99 99 41 96 76 80 59 82 77 75 61 94 1 48 19 87 56 90 83 91 17 93 53 84 76 92 87 20 96 76 77 27 77 94 77 89 29 Regions Visited 41 Branch Regions 19 Pre-discovered Areas 18 | . 3 . 4 . . 8 . . . 1 . 1 . 1 . . . . . . . . . . . . . . . . . . . . . . . . . . . Known Exits Taken 10 | . . 1 1 1 . 1 . . 1 . . . . . . . 1 . . . . . 1 . . . 1 . . . . . . 1 . . 1 . . . . Unknown Exits Taken 18 | 1 1 . . . . . . . . 1 1 1 1 1 . . . . 1 1 1 1 . . . . . 1 1 1 1 . . . . 1 . . 1 1 . Scrap Searched 16 | . . 3 . . . . . . . 2 2 3 . 2 . . . . . . . . . . . . . . 2 . 2 . . . . . . . . . . Spaces Dug 526 | . . 2 1 . 1 . . . 10 2 2 . 10 18 29 . . 40 2 1 . . 8 . 1 . 17 3 9 6 17 22 . 87 5 4 9 90 15 29 86 Terrain Destroyed 1422 | . . 14 6 2 1 3 . . 70 2 10 . 51 18 57 3 . 51 2 26 . 8 180 160 12 2 118 3 9 6 18 34 1 116 23 4 13 265 15 29 90 Melee 237 | . . 2 1 . 1 . . . 10 2 2 . . 18 11 . . 1 2 1 . . 8 . 1 . 17 3 9 6 17 22 . 58 3 3 7 10 13 6 3 Projectile 574 | . . . 2 2 . 3 . . 10 . 8 . 38 . 21 3 . 11 . 25 . 8 8 13 10 2 101 . . . 1 12 1 47 20 1 6 111 2 23 85 AOE 609 | . . 12 3 . . . . . 50 . . . 13 . 25 . . 39 . . . . 164 146 . . . . . . . . . 11 . . . 144 . . 2 Terrain Rammed . | . . . . . . . . . . . . . . . . . . . . . . . . . . . . . . . . . . . . . . . . . . Walls Destroyed . | . . . . . . . . . . . . . . . . . . . . . . . . . . . . . . . . . . . . . . . . . . Machines Disabled . | . . . . . . . . . . . . . . . . . . . . . . . . . . . . . . . . . . . . . . . . . . Actions | -11 -10 -10 -9 -9 -9 -9 -7 -7 -7 -7 -7 -7 -7 -6 -6 -6 -6 -6 -6 -6 -6 -6 -6 -6 -5 -5 -5 -5 -5 -5 -4 -4 -4 -4 -4 -3 -3 -3 -2 -2 -2 --------- Run | Yrd Mat Min Mat Sto Gar Rec Fac Was Fac Low Low Zio Dee Pro Fac Was Fac Gar Fac Ext Cet Arc Hub Gar Fac Was Fac Upp Upp War Pro Fac Was Fac Gar Res Qua Gar Res Tes Frg Total 63268 | 107 1305 657 1408 1146 1416 1164 1461 1441 4596 799 422 1429 1350 826 2104 721 78 846 752 1526 151 714 1333 1820 580 844 2838 982 914 2146 1250 1748 755 4552 1398 822 1601 3703 4807 1536 3220 Wait 6745 | . 141 5 75 152 157 1 50 470 121 136 24 289 364 55 36 152 59 163 30 262 1 283 81 77 39 230 273 11 36 464 18 252 128 520 76 23 68 401 133 141 748 Move 51815 | 74 1029 622 1128 845 1052 1045 1247 934 4195 649 383 1084 933 747 1934 542 19 630 694 1059 121 357 1199 1461 499 587 2384 934 844 1528 1150 1349 585 3768 1079 737 1462 2946 4551 1321 2108 Hop 166 | . . . . . . . 13 . 29 1 . . . . 22 . . 2 14 14 . . 10 1 . . 2 . . 1 2 1 1 26 . 1 3 5 10 7 1 Pick Up 357 | 9 27 5 36 13 8 5 12 4 26 3 . . 4 . 6 3 . 1 2 2 3 2 . 2 6 3 17 2 . 11 2 13 6 13 5 6 9 9 10 8 64 Fast Attach 252 | 6 4 . . 4 1 3 16 . 12 . . 6 2 . 6 . . 2 . 4 8 15 . 19 8 1 12 7 . 9 5 15 2 8 9 7 8 8 14 . 31 Attach 145 | 1 2 4 3 2 4 2 7 1 14 1 . . 2 . 4 . . 1 1 4 2 2 2 5 4 1 7 3 . 6 1 7 . 2 5 2 1 10 1 2 29 Detach 42 | . 1 . . . . . 1 . 7 . . . 1 . 4 . . . . 2 . 1 2 4 2 . . . . 2 . 2 . . 2 . . 3 . . 8 Swap 549 | . 8 3 31 20 22 9 19 11 38 4 6 7 19 2 9 4 . 6 5 11 2 5 15 20 2 13 36 1 6 26 19 23 9 30 17 16 2 13 25 12 23 Drop 515 | . 11 2 41 23 7 8 41 5 34 2 1 6 6 . 10 3 . 3 2 1 9 13 1 17 6 5 21 9 . 18 11 26 10 19 4 11 14 19 28 9 59 Fire 1067 | 17 76 6 89 69 77 28 24 16 54 . 6 . 10 . 11 2 . 28 . 27 5 11 7 89 12 2 56 5 1 2 23 12 9 35 47 11 7 113 3 9 68 Melee 785 | . . 7 1 2 26 26 4 . 23 3 2 1 9 22 29 15 . 10 4 12 . 25 16 35 2 2 29 10 16 7 19 48 5 118 38 8 27 64 32 27 61 Ram . | . . . . . . . . . . . . . . . . . . . . . . . . . . . . . . . . . . . . . . . . . . Kick . | . . . . . . . . . . . . . . . . . . . . . . . . . . . . . . . . . . . . . . . . . . Crush 18 | . 6 3 4 . . 5 . . . . . . . . . . . . . . . . . . . . . . . . . . . . . . . . . . . Escape Stasis 499 | . . . . 2 12 . 18 . 36 . . . . . 33 . . . . 54 . . . 90 . . . . . . . . . 13 116 . . 105 . . 20 Rewire 182 | . . . . . 9 32 . . . . . . . . . . . . . 58 . . . . . . 1 . 11 64 . . . . . . . 7 . . . Trap 53 | . . . . 14 23 . 9 . 7 . . . . . . . . . . . . . . . . . . . . . . . . . . . . . . . . Miscellaneous 78 | . . . . . 18 . . . . . . 36 . . . . . . . 16 . . . . . . . . . 8 . . . . . . . . . . . Route ------- -11/Scrapyard -10/Materials (discovered 6 exits: *Mat x3 / [*Min x2] / Sub) -10/Mines (discovered 3 exits: *Mat x2 / Sub) -9/Materials (discovered 6 exits: *Mat x3 / [*Min] / *Sto x2) -9/Storage (discovered 3 exits: *Mat / Rec / Gar) -9/Garrison (discovered 3 exits: *Rec x3) -9/Recycling (discovered 2 exits: *Fac / Scr) -7/Factory -7/Waste -7/Factory (discovered 4 exits: *Fac x2 / *Low x2) -7/Lower Caves -7/Lower Caves (discovered 2 exits: *Fac / *Zio) -7/Zion (discovered 2 exits: [*Dee] / [*Pro]) -7/Deep Caves -6/Proximity Caves -6/Factory (discovered 5 exits: *Fac x2 / *Low x2 / *Ext) -6/Waste -6/Factory -6/Garrison (discovered 3 exits: *Fac x3) -6/Factory (discovered 2 exits: *Low / *Ext) -6/Extension (discovered 2 exits: *Fac / *Cet) -6/Cetus -6/Archives (discovered 3 exits: *Fac / *Hub x2) -6/Hub_04(d) (discovered 5 exits: *Fac x4 / Gar) -6/Garrison (discovered 3 exits: *Fac x3) -5/Factory (discovered 2 exits: *Fac / *Upp) -5/Waste -5/Factory (discovered 4 exits: *Fac x2 / *Upp x2) -5/Upper Caves -5/Upper Caves (discovered 2 exits: *Fac / *War) -5/Warlord -4/Proximity Caves -4/Factory (discovered 3 exits: Upp x2 / Arm) -4/Waste -4/Factory (discovered 5 exits: *Res / *Upp x2 / Arm / Gar) -4/Garrison (discovered 3 exits: *Res x3) -3/Research (discovered 4 exits: Res x3 / *Qua) -3/Quarantine (discovered 2 exits: *Res / Gar) -3/Garrison (discovered 3 exits: *Res x3) -2/Research (discovered 4 exits: *Acc x3 / *Tes) -2/Testing (discovered 3 exits: *Acc / [*Sec] / *Frg) -2/Protoforge (discovered 1 exit: *Acc) History --------- Turn | Location | Event 6 | -11/Scrapyard | Discovered new exit (range 14) 165 | -11/Scrapyard | Entered Materials 309 | -10/Materials | Build established: Mutant 340 | -10/Materials | Discovered new exit (range 8) 464 | -10/Materials | Discovered new exit (range 13) 1106 | -10/Materials | Repaired Lgt. Treads 1564 | -10/Materials | Discovered new exit (range 8) 1636 | -10/Materials | Learned location of 1 exit from Recycling 1699 | -10/Materials | Loaded intel: 9 trap records 1751 | -10/Materials | Learned Recycling recycling unit intel 1792 | -10/Materials | Identified exit to Materials 1821 | -10/Materials | Identified exit to Subcaves 1840 | -10/Materials | Learned location of 2 exits from Mines 1871 | -10/Materials | Learned 2 Storage zone layouts 1904 | -10/Materials | Learned 8 Materials zone layouts 1949 | -10/Materials | Learned location of Subcaves (-10) 2374 | -10/Materials | Repaired Lgt. Treads 2655 | -10/Materials | Discovered exit to Materials (range 10) 3115 | -10/Materials | Core integrity fell below 50% 3518 | -10/Materials | Entered Mines 3518 | -10/Mines | Accompanied by 1 ally 3595 | -10/Mines | Learned Materials garrison access intel 3712 | -10/Mines | YI-UF0 nonchalantly dropped a Grenade Launcher on the ground 4736 | -10/Mines | Discovered exit to Materials (range 15) 5140 | -10/Mines | Destroyed YI-UF0 5169 | -10/Mines | Lost 4 parts (2n2w) 5426 | -10/Mines | Entered Materials 5426 | -9/Materials | Evolved 2 slots: Propulsion x1, Weapon x1 5427 | -9/Materials | Identified exit to Storage 5428 | -9/Materials | Identified exit to Materials 5717 | -9/Materials | Build established: Gunner 5952 | -9/Materials | Repaired Broken Lgt. Treads 6291 | -9/Materials | Build established: Tank 6308 | -9/Materials | Discovered exit to Storage (range 4) 6642 | -9/Materials | Discovered new exit (range 8) 7019 | -9/Materials | Discovered exit to Materials (range 5) 7954 | -9/Materials | Learned 2 Storage zone layouts 8124 | -9/Materials | Loaded intel: 17 interactive machine locations 8161 | -9/Materials | Learned 2 Storage zone layouts 8278 | -9/Materials | Learned Storage stockpile data 8598 | -9/Materials | Entered Storage 8600 | -9/Storage | Identified exit to Recycling 8811 | -9/Storage | Identified exit to Garrison 9045 | -9/Storage | Repaired Imp. Assault Rifle 9097 | -9/Storage | Repaired Imp. Assault Rifle 9306 | -9/Storage | Destroyed 8 combat bots 11052 | -9/Storage | Repaired Imp. Light Cannon 11070 | -9/Storage | Entered Garrison 11218 | -9/Garrison | Phase Generator disabled 11273 | -9/Garrison | Core integrity fell below 50% 11284 | -9/Garrison | Triggered checkpoint 11543 | -9/Garrison | Garrison Relay disabled 11604 | -9/Garrison | Garrison Relay disabled 11946 | -9/Garrison | Triggered checkpoint 12138 | -9/Garrison | Discovered exit to Recycling (range 14) 12230 | -9/Garrison | Triggered checkpoint 12413 | -9/Garrison | Garrison Relay disabled 12716 | -9/Garrison | Triggered checkpoint 12739 | -9/Garrison | Triggered checkpoint 12796 | -9/Garrison | Triggered checkpoint 12937 | -9/Garrison | Build established: Gunner 12952 | -9/Garrison | Discovered exit to Recycling (range 12) 13042 | -9/Garrison | Triggered checkpoint 13154 | -9/Garrison | Triggered checkpoint 13320 | -9/Garrison | Garrison Relay disabled 13420 | -9/Garrison | Build established: Scavenger-Tank 13599 | -9/Garrison | Garrison Relay disabled 13674 | -9/Garrison | Discovered exit to Recycling (range 11) 14207 | -9/Garrison | Entered Recycling 14208 | -9/Recycling | Identified exit to Factory 14209 | -9/Recycling | Loaded intel: 7 recycling unit locations 15948 | -9/Recycling | Build established: Tank 16373 | -9/Recycling | Identified exit to Scraptown 16430 | -9/Recycling | Learned Materials stockpile data 16486 | -9/Recycling | Scanned before Scraplab entrance 16568 | -9/Recycling | Learned 4 Materials zone layouts 16598 | -9/Recycling | Learned location of 3 exits from Materials 16637 | -9/Recycling | Learned location of Zion (-7) 16941 | -9/Recycling | Entered Factory 16941 | -7/Factory | Evolved 4 slots: Propulsion x1, Utility x2, Weapon x1 17114 | -7/Factory | Discovered new exit (range 15) 17258 | -7/Factory | Lost 6 parts (1p2n1u2w) 17341 | -7/Factory | Search patrols dispatched 17596 | -7/Factory | Sucked down chute 17596 | -7/Factory | Entered Waste 17597 | -7/Waste | Met a frightened Derelict 17599 | -7/Waste | Spotted C-40 Crusher 17614 | -7/Waste | Spotted C-40 Crusher 17615 | -7/Waste | Spotted C-40 Crusher 17616 | -7/Waste | Spotted C-40 Crusher 17618 | -7/Waste | Spotted C-40 Crusher 17649 | -7/Waste | Spotted C-40 Crusher 17672 | -7/Waste | Discovered new exit (range 13) 17676 | -7/Waste | Warlord forces began an assault 17694 | -7/Waste | Allies destroyed C-40 Crusher 17699 | -7/Waste | Allies destroyed C-40 Crusher 17712 | -7/Waste | Allies destroyed C-40 Crusher 17728 | -7/Waste | Allies destroyed C-40 Crusher 17728 | -7/Waste | Destroyed C-40 Crusher 17736 | -7/Waste | Allies destroyed C-40 Crusher 17756 | -7/Waste | Lost 5 allies 17794 | -7/Waste | Build established: Sprinter 18149 | -7/Waste | Build established: Gunner 18344 | -7/Waste | Found Imp. Powered Armor 18937 | -7/Waste | Entered Factory 18937 | -7/Factory | Accompanied by 12 allies 19081 | -7/Factory | Identified exit to Lower Caves 19177 | -7/Factory | Core integrity fell below 50% 19222 | -7/Factory | Build established: Sprinter 19230 | -7/Factory | Repaired Broken Imp. Flight Unit 19880 | -7/Factory | Lost 3 parts (2p1n) 19939 | -7/Factory | Discovered new exit (range 16) 20137 | -7/Factory | First assault squad dispatched 20170 | -7/Factory | Cargo convoy interrupted 20247 | -7/Factory | Discovered new exit (range 11) 20289 | -7/Factory | Found Prototype Processor 20289 | -7/Factory | Identified Exp. Signal Interpreter 20294 | -7/Factory | Found Exp. Signal Interpreter 20309 | -7/Factory | Found PL-3XN's Ring of Power 20408 | -7/Factory | Fabricated Imp. Flight Unit? 20772 | -7/Factory | Entered Lower Caves 20781 | -7/Lower Caves | Met a Warlord Commander 20782 | -7/Lower Caves | Learned location of Warlord (-5) 20783 | -7/Lower Caves | Warlord Commander delivered Encrypted Comm Array 20786 | -7/Lower Caves | Found Encrypted Comm Array 20909 | -7/Lower Caves | Found DCF Scrap (13 items) 21067 | -7/Lower Caves | Learned 12 Factory zone layouts 21096 | -7/Lower Caves | Discovered new exit (range 5) 21098 | -7/Lower Caves | Entered another Lower Caves area 21100 | -7/Lower Caves | Core integrity fell below 20% 21103 | -7/Lower Caves | Discovered new exit (range 16) 21245 | -7/Lower Caves | Discovered new exit (range 5) 21273 | -7/Lower Caves | Entered Zion 21283 | -7/Zion | System corruption cleaned by Quarantine Array 21313 | -7/Zion | Discovered new exit (range 9) 21337 | -7/Zion | Given A8's code to call for help 21360 | -7/Zion | Found CR-A16's Pointy Stick 21448 | -7/Zion | Learned location of 1 exit from Factory 21453 | -7/Zion | Learned Factory emergency access door positions 21465 | -7/Zion | Given the Hacking Drone Bay 21466 | -7/Zion | Found Prototype Device 21466 | -7/Zion | Identified Hacking Drone Bay 21498 | -7/Zion | Learned location of Data Miner (-6) 21806 | -7/Zion | Discovered new exit (range 5) 21809 | -7/Zion | Saw the warning signs outside the Deep Caves entrance 21821 | -7/Zion | Enhanced Grunt warped into view, answering call for help 21831 | -7/Zion | Enhanced Grunt warped into view, answering call for help 21978 | -7/Zion | Entered Deep Caves 21978 | -7/Deep Caves | Accompanied by 2 allies 22059 | -7/Deep Caves | Found Surveybot 24 Chip 22185 | -7/Deep Caves | Attacked by Z-Imprinter 22197 | -7/Deep Caves | Allies destroyed Z-Imprinter 22238 | -7/Deep Caves | Found Prototype Device 22238 | -7/Deep Caves | Identified Zio. Metafield Generator 22294 | -7/Deep Caves | Found Prototype Protection 22294 | -7/Deep Caves | Identified Zio. Weapon Casing 22428 | -7/Deep Caves | Z-Facility disabled 22667 | -7/Deep Caves | Discovered new exit (range 11) 22688 | -7/Deep Caves | Spotted AG-98627 22741 | -7/Deep Caves | Entered Proximity Caves 22741 | -6/Proximity Caves | Accompanied by 1 ally 22920 | -6/Proximity Caves | Spotted B-75 Beast 22995 | -6/Proximity Caves | Spotter reported a threat 23057 | -6/Proximity Caves | Discovered new exit (range 13) 23082 | -6/Proximity Caves | Entered Factory 23082 | -6/Factory | Evolved 2 slots: Power x1, Propulsion x1 23083 | -6/Factory | Identified exit to Lower Caves 23085 | -6/Factory | Identified exit to Factory 23124 | -6/Factory | Discovered new exit (range 12) 23481 | -6/Factory | Discovered exit to Factory (range 11) 23619 | -6/Factory | Spotted B-75 Beast 23782 | -6/Factory | Search patrols dispatched 23834 | -6/Factory | Manually triggered Chute Trap 23834 | -6/Factory | Sucked down chute 23834 | -6/Factory | Entered Waste 23839 | -6/Waste | Spotted C-40 Crusher 23840 | -6/Waste | Spotted C-40 Crusher 23847 | -6/Waste | Spotted C-40 Crusher 23877 | -6/Waste | Spotted C-40 Crusher 23877 | -6/Waste | Spotted C-40 Crusher 23880 | -6/Waste | Warlord forces began an assault 23897 | -6/Waste | Allies destroyed C-40 Crusher 23902 | -6/Waste | Allies destroyed C-40 Crusher 23908 | -6/Waste | Allies destroyed C-40 Crusher 23911 | -6/Waste | Allies destroyed C-40 Crusher 23918 | -6/Waste | Allies destroyed C-40 Crusher 23942 | -6/Waste | Spotted C-40 Crusher 23949 | -6/Waste | Allies destroyed C-40 Crusher 23966 | -6/Waste | Discovered new exit (range 16) 24089 | -6/Waste | Found Prototype Processor 24183 | -6/Waste | Entered Factory 24183 | -6/Factory | Accompanied by 16 allies 24188 | -6/Factory | Identified exit to Garrison 24247 | -6/Factory | Entered Garrison 24247 | -6/Garrison | Accompanied by 16 allies 24269 | -6/Garrison | Triggered checkpoint 24296 | -6/Garrison | Garrison Relay disabled 24317 | -6/Garrison | Discovered new exit (range 82) 24317 | -6/Garrison | Discovered new exit (range 40) 24317 | -6/Garrison | Discovered new exit (range 85) 24317 | -6/Garrison | Identified exit to Factory 24388 | -6/Garrison | Lost 3 allies 24406 | -6/Garrison | Triggered checkpoint 24443 | -6/Garrison | Triggered checkpoint 24497 | -6/Garrison | Triggered checkpoint 24622 | -6/Garrison | Garrison Relay disabled 24647 | -6/Garrison | Triggered checkpoint 24663 | -6/Garrison | Garrison Relay disabled 24692 | -6/Garrison | Entered Factory 24692 | -6/Factory | Accompanied by 7 allies 24786 | -6/Factory | Discovered exit to Lower Caves (range 6) 24847 | -6/Factory | Fabricated Imp. Cesium-ion Thruster (x1) 24884 | -6/Factory | Spotted B-75 Beast 24916 | -6/Factory | Discovered new exit (range 15) 24920 | -6/Factory | Entered Extension 24967 | -6/Extension | Rescued A7 25380 | -6/Extension | Spotted B-75 Beast 25408 | -6/Extension | Spotted B-75 Beast 25438 | -6/Extension | Extracted ID and sensor layout for unrecognized location from A7's data core 25467 | -6/Extension | Lost 4 allies 25470 | -6/Extension | Lost 5 parts (2p1n2w) 25527 | -6/Extension | Rescued a captive Derelict 25529 | -6/Extension | Rescued a captive Derelict 25668 | -6/Extension | Rescued a captive Derelict 25672 | -6/Extension | Lost 4 allies 25719 | -6/Extension | Discovered exit to Factory (range 10) 25720 | -6/Extension | Discovered new exit (range 6) 25737 | -6/Extension | Entered Cetus 25753 | -6/Cetus | Spotted Cetus Guard 25754 | -6/Cetus | Spotted Cetus Guard 25757 | -6/Cetus | Spotted Cetus Guard 25757 | -6/Cetus | Spotted Cetus Guard 25758 | -6/Cetus | Core integrity fell below 50% 25762 | -6/Cetus | Destroyed Cetus Guard 25762 | -6/Cetus | Destroyed Cetus Guard 25763 | -6/Cetus | Destroyed Cetus Guard 25764 | -6/Cetus | Destroyed Cetus Guard 25784 | -6/Cetus | System corruption reached 10% 25793 | -6/Cetus | System corruption reached 30% 25844 | -6/Cetus | Discovered new exit (range 16) 25858 | -6/Cetus | Entered Archives 25977 | -6/Archives | Discovered exit to Factory (range 13) 26015 | -6/Archives | Discovered new exit (range 13) 26359 | -6/Archives | Discovered new exit (range 15) 26402 | -6/Archives | Unable to access archive contents 26420 | -6/Archives | Entered Hub_04(d) 26731 | -6/Hub_04(d) | Identified exit to Garrison 26792 | -6/Hub_04(d) | Build established: Scavenger-Sprinter 26817 | -6/Hub_04(d) | Joined by Warlord Geek squad 26853 | -6/Hub_04(d) | Network Hub disabled 26872 | -6/Hub_04(d) | Network Hub disabled 26884 | -6/Hub_04(d) | Lost 3 allies 26892 | -6/Hub_04(d) | Identified exit to Garrison 26893 | -6/Hub_04(d) | Spotted Lightning 26894 | -6/Hub_04(d) | Entered Garrison 26911 | -6/Garrison | Triggered checkpoint 27025 | -6/Garrison | Garrison Relay disabled 27032 | -6/Garrison | Spotted B-90 Cyclops 27033 | -6/Garrison | Spotted B-90 Cyclops 27168 | -6/Garrison | Triggered checkpoint 27316 | -6/Garrison | Garrison Relay disabled 27378 | -6/Garrison | Triggered checkpoint 27415 | -6/Garrison | Discovered exit to Factory (range 3) 27512 | -6/Garrison | Triggered checkpoint 27542 | -6/Garrison | Triggered checkpoint 27544 | -6/Garrison | Garrison Relay disabled 27571 | -6/Garrison | Rescued a captive Derelict 27610 | -6/Garrison | Discovered exit to Factory (range 13) 27633 | -6/Garrison | Triggered checkpoint 27718 | -6/Garrison | Triggered checkpoint 27734 | -6/Garrison | Spotted Executioner 27735 | -6/Garrison | Discovered exit to Factory (range 10) 27869 | -6/Garrison | Revealed the true nature of CR-A16's Pointy Stick 27936 | -6/Garrison | Phase Generator disabled 28002 | -6/Garrison | Entered Factory 28002 | -5/Factory | Evolved 2 slots: Propulsion x1, Utility x1 28035 | -5/Factory | Discovered new exit (range 3) 28141 | -5/Factory | Discovered new exit (range 16) 28205 | -5/Factory | Garrison activated, responded to threat 28244 | -5/Factory | Manually triggered Chute Trap 28244 | -5/Factory | Sucked down chute 28244 | -5/Factory | Entered Waste 28245 | -5/Waste | Met a frightened Derelict 28248 | -5/Waste | Spotted C-40 Crusher 28249 | -5/Waste | Spotted C-40 Crusher 28249 | -5/Waste | Spotted C-40 Crusher 28269 | -5/Waste | Spotted C-40 Crusher 28278 | -5/Waste | Spotted C-40 Crusher 28278 | -5/Waste | Spotted C-40 Crusher 28282 | -5/Waste | Warlord forces began an assault 28288 | -5/Waste | Allies destroyed C-40 Crusher 28301 | -5/Waste | Allies destroyed C-40 Crusher 28305 | -5/Waste | Allies destroyed C-40 Crusher 28307 | -5/Waste | Allies destroyed C-40 Crusher 28322 | -5/Waste | Allies destroyed C-40 Crusher 28370 | -5/Waste | Discovered new exit (range 14) 28655 | -5/Waste | Entered Factory 28655 | -5/Factory | Accompanied by 17 allies 28706 | -5/Factory | Fabricated Imp. Cesium-ion Thruster? 28751 | -5/Factory | Fabricated Imp. Cesium-ion Thruster (x1) 28921 | -5/Factory | Lost 3 allies 29244 | -5/Factory | Lost 4 allies 29336 | -5/Factory | Identified exit to Upper Caves 29463 | -5/Factory | Lost 3 allies 29478 | -5/Factory | Discovered new exit (range 16) 29555 | -5/Factory | First assault squad dispatched 29770 | -5/Factory | Lost 3 allies 29857 | -5/Factory | Discovered new exit (range 12) 30016 | -5/Factory | Crushed by falling debris 30034 | -5/Factory | Entered Upper Caves 30057 | -5/Upper Caves | Lost 4 parts (3n1u) 30075 | -5/Upper Caves | Spotted B-75 Beast 30080 | -5/Upper Caves | Destroyed B-75 Beast 30084 | -5/Upper Caves | Learned Factory trap positions 30345 | -5/Upper Caves | Attracted the attention of an 0b10 outpost 30420 | -5/Upper Caves | Discovered new exit (range 7) 30550 | -5/Upper Caves | Entered another Upper Caves area 30556 | -5/Upper Caves | Attacked by a delusional Derelict stockpiling Unaware 30584 | -5/Upper Caves | Discovered new exit (range 7) 30663 | -5/Upper Caves | Build established: Scavenger-Gunner 30776 | -5/Upper Caves | Learned Factory garrison access intel 30891 | -5/Upper Caves | Discovered new exit (range 4) 31045 | -5/Upper Caves | Entered Warlord 31061 | -5/Warlord | System corruption cleaned by Quarantine Array 31077 | -5/Warlord | Learned Factory fabricator intel 31077 | -5/Warlord | Learned Factory recycling unit intel 31077 | -5/Warlord | Learned Research terminal intel 31077 | -5/Warlord | Learned Research repair station intel 31077 | -5/Warlord | Learned 4 Armory zone layouts 31077 | -5/Warlord | Learned Research trap positions 31077 | -5/Warlord | Learned Armory stockpile data 31224 | -5/Warlord | Found Prototype Reactor 31226 | -5/Warlord | Found Prototype Processor 31227 | -5/Warlord | Found Prototype Hackware 31259 | -5/Warlord | Warlord's base attacked by MAIN.C 31381 | -5/Warlord | Met Warlord 31399 | -5/Warlord | Found Prototype Energy Gun 31399 | -5/Warlord | Identified Vortex Shotgun 31406 | -5/Warlord | Found Prototype Energy Gun 31406 | -5/Warlord | Identified Vortex Rail 31409 | -5/Warlord | Identified Vortex Chain Reactor 31416 | -5/Warlord | Found Vortex Shotgun 31433 | -5/Warlord | Found Prototype Special Weapon 31433 | -5/Warlord | Identified RU-N14's Throwing Claymores v3 31442 | -5/Warlord | Identified Exp. Armor Integrity Analyzer 31444 | -5/Warlord | Identified Ghost Barrier 31447 | -5/Warlord | Found RU-N14's Throwing Claymores v3 31514 | -5/Warlord | Spotted B-86 Titan 31531 | -5/Warlord | Spotted B-75 Beast 31607 | -5/Warlord | Warlord forces counterattacked 31630 | -5/Warlord | Build established: Scavenger-Sprinter 31642 | -5/Warlord | Spotted Striker 31715 | -5/Warlord | Spotted B-86 Titan 31747 | -5/Warlord | Lost 13 allies 31832 | -5/Warlord | Spotted Striker 31841 | -5/Warlord | Destroyed Striker 31860 | -5/Warlord | Spotted Executioner 31934 | -5/Warlord | Warlord base infiltrated, sounded retreat 31935 | -5/Warlord | Enhanced Grunt warped into view 31935 | -5/Warlord | Enhanced Grunt warped into view 31935 | -5/Warlord | Enhanced Grunt warped into view 31935 | -5/Warlord | Enhanced Demolisher warped into view 31935 | -5/Warlord | Enhanced Demolisher warped into view 31935 | -5/Warlord | Enhanced Demolisher warped into view 32007 | -5/Warlord | Found Prototype Device 32007 | -5/Warlord | Identified Adv. Kinecellerator 32009 | -5/Warlord | Found Prototype Processor 32009 | -5/Warlord | Identified Exp. Core Analyzer 32020 | -5/Warlord | Discovered new exit (range 14) 32022 | -5/Warlord | Found Prototype Ballistic Cannon 32022 | -5/Warlord | Identified Hvy. Autocannon 32058 | -5/Warlord | Entered Proximity Caves 32058 | -4/Proximity Caves | Accompanied by 5 allies 32074 | -4/Proximity Caves | Learned Research non-interactive machine intel 32075 | -4/Proximity Caves | Learned Research stockpile data 32135 | -4/Proximity Caves | Spotter reported a threat 32142 | -4/Proximity Caves | Spotter reported a threat 32433 | -4/Proximity Caves | Spotted B-86 Titan 32444 | -4/Proximity Caves | Attracted the attention of an 0b10 checkpoint 32448 | -4/Proximity Caves | Discovered new exit (range 8) 32473 | -4/Proximity Caves | Entered Factory 32473 | -4/Factory | Evolved 2 slots: Propulsion x2 32474 | -4/Factory | Identified exit to Armory 32475 | -4/Factory | Loaded intel: 102 trap records 32476 | -4/Factory | Loaded intel: 6 fabricator locations 32477 | -4/Factory | Loaded intel: 8 recycling unit locations 32477 | -4/Factory | Identified exit to Upper Caves 32478 | -4/Factory | Loaded intel: 4 garrison access locations 32695 | -4/Factory | Lost 3 parts (2p1n) 32718 | -4/Factory | Fabricated Imp. Diametric Drive? 32973 | -4/Factory | Search patrols dispatched 33095 | -4/Factory | Fabricated Imp. Diametric Drive? 33175 | -4/Factory | Fabricated Adv. Recoil Stabilizer? 33183 | -4/Factory | Fabricated Imp. Diametric Drive? 33207 | -4/Factory | Manually triggered Chute Trap 33207 | -4/Factory | Sucked down chute 33207 | -4/Factory | Entered Waste 33208 | -4/Waste | Joined by Warlord forces that had cleared the area 33245 | -4/Waste | Build established: Hacker-Sprinter 33259 | -4/Waste | Murdered 3 allies 33336 | -4/Waste | Discovered new exit (range 13) 33478 | -4/Waste | Entered Factory 33478 | -4/Factory | Accompanied by 20 allies 33592 | -4/Factory | P-70 Sage assimilated allied KI-ILU(s) 33623 | -4/Factory | Spotted B-86 Titan 33677 | -4/Factory | Destroyed B-86 Titan 33702 | -4/Factory | Build established: Scavenger-Sprinter 33723 | -4/Factory | Lost 3 allies 33789 | -4/Factory | P-70 Sage assimilated allied DW-LIM(g) 33855 | -4/Factory | Lost 5 allies 34079 | -4/Factory | Fabricated Imp. Diametric Drive? 34122 | -4/Factory | Discovered new exit (range 9) 34303 | -4/Factory | Identified exit to Garrison 34478 | -4/Factory | Search patrols dispatched 34667 | -4/Factory | System corruption reached 10% 34728 | -4/Factory | Search patrols dispatched 34978 | -4/Factory | Search patrols dispatched 35007 | -4/Factory | Entered Garrison 35108 | -4/Garrison | Triggered checkpoint 35150 | -4/Garrison | Garrison Relay disabled 35151 | -4/Garrison | Lost 3 parts (1p1n1u) 35171 | -4/Garrison | Triggered checkpoint 35196 | -4/Garrison | Spotted B-86 Titan 35203 | -4/Garrison | Destroyed B-86 Titan 35239 | -4/Garrison | Triggered checkpoint 35431 | -4/Garrison | Lost 3 parts (1n1u1w) 35468 | -4/Garrison | Discovered new exit (range 11) 35495 | -4/Garrison | Triggered checkpoint 35563 | -4/Garrison | Triggered checkpoint 35602 | -4/Garrison | Garrison Relay disabled 35646 | -4/Garrison | Discovered new exit (range 10) 35677 | -4/Garrison | Crushed by falling debris 35690 | -4/Garrison | Spotted B-75 Beast 35695 | -4/Garrison | Discovered new exit (range 10) 35703 | -4/Garrison | Spotted Striker 35733 | -4/Garrison | Triggered checkpoint 35757 | -4/Garrison | Garrison Relay disabled 35798 | -4/Garrison | Entered Research 35798 | -3/Research | Evolved 2 slots: Utility x2 35799 | -3/Research | Loaded intel: 66 trap records 35801 | -3/Research | Loaded intel: 59 non-interactive machine locations 35802 | -3/Research | Loaded intel: 23 terminal locations 35803 | -3/Research | Loaded intel: 4 repair station locations 35850 | -3/Research | Lost 3 parts (3n) 35993 | -3/Research | Identified exit to Research 36017 | -3/Research | Spotted B-86 Titan 36032 | -3/Research | Spotted B-86 Titan 36034 | -3/Research | Discovered new exit (range 9) 36035 | -3/Research | Entered Quarantine 36051 | -3/Quarantine | Identified exit to Garrison 36060 | -3/Quarantine | Found Alien Slashing Weapon 36060 | -3/Quarantine | Identified Sigix Broadsword 36097 | -3/Quarantine | Repaired Lgt. Antimatter Cannon? 36118 | -3/Quarantine | Found Alien Artifact 36122 | -3/Quarantine | Found Alien Artifact 36128 | -3/Quarantine | Found Alien Artifact 36129 | -3/Quarantine | Found Alien Artifact 36129 | -3/Quarantine | Identified Dimensional Node Initializer (x2) 36129 | -3/Quarantine | Initialized slip node 36345 | -3/Quarantine | Build established: Hacker-Sprinter 36387 | -3/Quarantine | Cryocooling Duct disabled 36394 | -3/Quarantine | Found Prototype Hackware 36402 | -3/Quarantine | Ambient heat levels rising (+20) 36402 | -3/Quarantine | Non-combat units ordered to evacuate 36415 | -3/Quarantine | Found Alien Artifact 36420 | -3/Quarantine | Found Alien Energy Cannon 36432 | -3/Quarantine | Identified Exp. Hacking Suite 36439 | -3/Quarantine | Discovered exit to Research (range 22) 36485 | -3/Quarantine | Cryocooling Duct disabled 36500 | -3/Quarantine | Ambient heat levels rising (+20) 36500 | -3/Quarantine | Combat units ordered to evacuate 36512 | -3/Quarantine | Entered Garrison 36521 | -3/Garrison | Identified Core Cannon 36570 | -3/Garrison | Phase Generator disabled 36635 | -3/Garrison | Spotted B-86 Titan 36668 | -3/Garrison | Destroyed B-86 Titan 36698 | -3/Garrison | Triggered checkpoint 36811 | -3/Garrison | Garrison Relay disabled 37327 | -3/Garrison | Triggered checkpoint 37524 | -3/Garrison | Discovered exit to Research (range 10) 37772 | -3/Garrison | Rewired B-75 Beast 37804 | -3/Garrison | Triggered checkpoint 37821 | -3/Garrison | Garrison Relay disabled 37835 | -3/Garrison | Triggered checkpoint 37894 | -3/Garrison | Triggered checkpoint 37934 | -3/Garrison | Discovered exit to Research (range 3) 37948 | -3/Garrison | Triggered checkpoint 37972 | -3/Garrison | Garrison Relay disabled 37993 | -3/Garrison | Garrison Relay disabled 38003 | -3/Garrison | Discovered exit to Research (range 15) 38088 | -3/Garrison | Entered Research 38088 | -2/Research | Warlord forces began assault on 0b10 38088 | -2/Research | Evolved 2 slots: Propulsion x1, Utility x1 38113 | -2/Research | Distinguished unit "Smaug Mourners" dispatched to help 38113 | -2/Research | Distinguished unit "Knights of the Pentagonal Table" dispatched to help 38155 | -2/Research | Met up with Warlord 38180 | -2/Research | Lost 3 allies 38198 | -2/Research | Research machine network offline 38217 | -2/Research | Found Prototype Processor 38282 | -2/Research | Spotted B-90 Cyclops 38302 | -2/Research | Spotted B-90 Cyclops 38307 | -2/Research | Destroyed B-90 Cyclops 38310 | -2/Research | Discovered new exit (range 19) 38363 | -2/Research | Destroyed B-90 Cyclops 38399 | -2/Research | Spotted B-90 Cyclops 38451 | -2/Research | Borebot progress halted 38486 | -2/Research | Identified exit to Access 38538 | -2/Research | Spotted B-90 Cyclops 38539 | -2/Research | Spotted Striker 38562 | -2/Research | Spotted Striker 38564 | -2/Research | Spotted Executioner 38584 | -2/Research | Borebot progress halted 38659 | -2/Research | Spotted Striker 38714 | -2/Research | Found Exp. Core Analyzer 38742 | -2/Research | Discovered exit to Access (range 15) 38809 | -2/Research | Discovered new exit (range 8) 38975 | -2/Research | Spotted Striker 39025 | -2/Research | Lost 3 allies 39079 | -2/Research | Discovered exit to Access (range 17) 39156 | -2/Research | Warlord invited to help at Command 39156 | -2/Research | Given Cave Seal Controls access code 39183 | -2/Research | Entered Testing 39201 | -2/Testing | Found Prototype Protection 39202 | -2/Testing | Found Prototype Protection 39203 | -2/Testing | Identified Med. Regenerative Plating 39213 | -2/Testing | Identified Hpw. Transdimensional Reconstructor (x2) 39360 | -2/Testing | Spotted PL-TUPOJ4HUAO 39381 | -2/Testing | Lost 7 allies 39381 | -2/Testing | Found Prototype Energy Gun 39381 | -2/Testing | Identified Tachyon Dispersion Ray 39416 | -2/Testing | Discovered exit to Access (range 8) 39423 | -2/Testing | Found Fusion Bomb Launcher 39538 | -2/Testing | Spotted PX-IBFY5V1EWF 39577 | -2/Testing | Spotted Fortress 39588 | -2/Testing | Discovered new exit (range 6) 39588 | -2/Testing | Discovered new exit (range 6) 39654 | -2/Testing | Entered Protoforge 39681 | -2/Protoforge | Spotted Hotshot 39681 | -2/Protoforge | Spotted Hotshot 39681 | -2/Protoforge | Spotted Hotshot 39681 | -2/Protoforge | Spotted Hotshot 39756 | -2/Protoforge | Spotted Hotshot 39756 | -2/Protoforge | Spotted Hotshot 39756 | -2/Protoforge | Spotted Hotshot 39756 | -2/Protoforge | Discovered exit to Access (range 13) 39756 | -2/Protoforge | Spotted B-90 Cyclops 39758 | -2/Protoforge | Spotted Hotshot 39759 | -2/Protoforge | Superfortress began startup sequence 39777 | -2/Protoforge | System corruption reached 10% 39857 | -2/Protoforge | Spotted Hotshot 40033 | -2/Protoforge | Additional patrols dispatched to research labs 40054 | -2/Protoforge | Crushed by falling debris 40067 | -2/Protoforge | Crushed by falling debris 40072 | -2/Protoforge | Spotted Immortal 40077 | -2/Protoforge | Spotted Immortal 40095 | -2/Protoforge | Found Prototype Flight Unit 40101 | -2/Protoforge | Identified Cep. Fieldthrust Drive 40123 | -2/Protoforge | Found Prototype Hover Unit 40131 | -2/Protoforge | Identified Cep. Gyrokinetic System 40134 | -2/Protoforge | Found Cep. Fieldthrust Drive 40201 | -2/Protoforge | Spotted Decapitator 40201 | -2/Protoforge | Spotted Decapitator 40201 | -2/Protoforge | Spotted Decapitator 40201 | -2/Protoforge | Spotted Decapitator 40241 | -2/Protoforge | Spotted Decapitator 40247 | -2/Protoforge | Destroyed Immortal 40262 | -2/Protoforge | Destroyed Immortal 40269 | -2/Protoforge | Spotted Decapitator 40269 | -2/Protoforge | Spotted Decapitator 40270 | -2/Protoforge | Spotted Decapitator 40294 | -2/Protoforge | Destroyed Decapitator 40301 | -2/Protoforge | Destroyed Decapitator 40310 | -2/Protoforge | Destroyed Decapitator 40321 | -2/Protoforge | Destroyed Decapitator 40323 | -2/Protoforge | Destroyed Decapitator 40334 | -2/Protoforge | Found Prototype Launcher 40334 | -2/Protoforge | Identified Cep. Concussive Dispersal Blaster 40337 | -2/Protoforge | Destroyed Decapitator 40358 | -2/Protoforge | Destroyed 9 combat bots 40368 | -2/Protoforge | Lost 6 parts (1p2n3u) 40419 | -2/Protoforge | Found Cep. Chromion Battery 40420 | -2/Protoforge | Found Cep. Chromion Battery 40421 | -2/Protoforge | Found Cep. Chromion Battery 40423 | -2/Protoforge | Found Prototype Device 40423 | -2/Protoforge | Identified Crosscalibrator 40494 | -2/Protoforge | Initialized slip node 40506 | -2/Protoforge | Spotted V031-p 40506 | -2/Protoforge | Spotted V766-e 40506 | -2/Protoforge | Spotted V556-i 40506 | -2/Protoforge | Spotted V273-f 40510 | -2/Protoforge | Found Faulty Cep. XC Strikerail 40512 | -2/Protoforge | Found Faulty Cep. XC Strikerail 40556 | -2/Protoforge | Found Faulty Cep. XC Strikerail 40578 | -2/Protoforge | Build established: Scavenger-Mutant 40664 | -2/Protoforge | Found Prototype Piercing Weapon 40669 | -2/Protoforge | Identified Exp. Jetlance 40831 | -2/Protoforge | Found Cep. Helical Railcannon 41046 | -2/Protoforge | Lost 4 parts (3u1w) 41059 | -2/Protoforge | Found Prototype Storage 41060 | -2/Protoforge | Found Prototype Storage 41063 | -2/Protoforge | Identified Cep. NT7 Matterbank (x2) 41076 | -2/Protoforge | Found Cep. Heavy Railcannon 41085 | -2/Protoforge | Spotted V069-h 41086 | -2/Protoforge | Core integrity fell below 50% 41154 | -2/Protoforge | First assault squad dispatched 41157 | -2/Protoforge | Lost 4 parts (1p3n) 41184 | -2/Protoforge | Destroyed V069-h 41207 | -2/Protoforge | Found Prototype Storage 41207 | -2/Protoforge | Identified Cep. Antigrav Storage Unit 41213 | -2/Protoforge | Lost 5 parts (1p2n1u1w) 41288 | -2/Protoforge | Found Faulty Cep. Gyrokinetic System 41295 | -2/Protoforge | Found Cep. Combat Aerolev Unit 41369 | -2/Protoforge | Core integrity fell below 20% 41396 | -2/Protoforge | Lost 5 parts (1p3n1u) 41397 | -2/Protoforge | Found Exp. Jetlance 41399 | -2/Protoforge | Found Prototype Slashing Weapon 41399 | -2/Protoforge | Identified Cep. Deflector Sword 41430 | -2/Protoforge | Self-destructed Last Messages --------------- 41424_ Slug penetrates Research Cell. 41424_ Slug penetrates Reinforced Barrier. 41424_ Slug penetrates Research Cell. 41424_ Slug penetrates Forge Pylon. 41424_ Slug penetrates Research Cell. 41424_ Penetrated by Slug. 41424_ Slug penetrates Research Cell. 41425_ Deflected attack with Cep. Deflector Sword. 41425_ Chain reaction triggered in Corrupted Lgt. Ion Engine. 41425_ Exp. Jetlance destroyed. 41426_ Deflected attack with Cep. Deflector Sword. 41428_ V766-e suddenly sparks and explodes in a catastrophic instability. 41428_ V766-e destroyed. 41428_ Machine disabled. 41428_ V031-p martial strike. 41428_ Penetrated by Slug. 41428_ Slug penetrates Reinforced Barrier. 41428_ Penetrated by Slug. 41428_ Slug penetrates Reinforced Barrier. 41428_ V031-p martial strike. Map ----- +----------------------------------------------------+ | ?????????????????????????????????????????????????? | | ?????????????????????????????????????????????????? | | ?????????????????????????????????????????????????? | | #######??????????####????????????????????????????? | | """"""#??????????#"""?######"????????????????????? | | ]]!!"#??????????#" "?# # ????????????????????? | | [[!!="#??????????#" ? ?????????????????????? | | "" "###???????????" ? ?????????????????????? | | ""#?????????##//## ""#??####???????????????? | | " ###???????#" "??"""#???????????????? | | #???????# ""#/["#???????????????? | | #???????## "/["#???????????????? | | #???????# "[/"#???????????????? | | ##??????# "] "#???????????????? | | "#??????# "] "#???????????????? | | "" "#??????#" "/]"#???????????????? | | " "#??????#"" "/["#???????????????? | | """" "#??????#" "/["#???????????????? | | #"""""""#??????## #]["#???????????????? | | #########???????###" ####???????????????????? | | #????????????????#"/ #??????????????????????? | | #????????????????# [] V #??????????????????????? | | #????????????????# #??????????????????????? | | #????????????????# [ #??????????????????????? | | #????????????????# [ #??????????????????????? | | ###??????????????# V[ @#??????????????????????? | | #??????????????# !] l#??????????????????????? | | #??????????????# = gl#??????????????????????? | | #??????????????# /" #??????????????????????? | | #??????????????# #l #??????????????????????? | | ###??????????????##### #??????????????????????? | | #????????????????????# b#??????????????????????? | | #????????????????????# #??????????????????????? | | #????????????????????#g #??????????????????????? | | #????????????????????# #??????????????????????? | | #????????????????????#g #??????????????????????? | | ###################### ##################### ? | | # | | " | | % | | ###########++###################+++######## #??? | | ???????# " !"#????????????????????????????????? | | ???????# "#????????????????????????????????? | | ???????# "#????????????????????????????????? | | ???????#" "#????????????????????????????????? | | ???????# T" ##????????????????????????????????? | | ??????##" "" "#????????????????????????????????? | | ?????# #" """" "#????????????????????????????????? | | ????# ##""""""""#????????????????????????????????? | | ???# #?##########????????????????????????????????? | +----------------------------------------------------+ Best States ------------- Heat Dissipation 139 Coolant Potential 50 Energy Generation 55 Energy Capacity 1020 Matter Stores 444 Matter Capacity 1050 Sight Range 22 Robot Scan Range 15 Terrain Scan Range 14 Terrain Scan Density 85 ECM Strength 1 Cloak Strength 3 Additional Mass Support 9 Base Temperature (-) 200 Armor Coverage 400 Core Shielding 20 Propulsion Shielding 66 Point Defense Rating 80 Projectile Deflection 15 Melee Speed Boost 30 Evasion (%) 80 Targeting Accuracy 13 Target Analysis 8 Core Analysis 11 Recoil Reduction 7 Offensive Hacking 24 Defensive Hacking 20 Authchip Count 2 Trap Extractor Capacity 6 Item Schematics ----------------- Lgt. Treads | -10/Materials | Hacked Lgt. Assault Rifle | -10/Materials | Hacked Arm. Wheel | -9/Materials | Hacked Lgt. Ion Engine | -9/Materials | Hacked Hcp. Storage Unit | -9/Materials | Scanalyzed Lgt. Armor Plating | -9/Materials | Scanalyzed Imp. Light Cannon | -9/Materials | Scanalyzed Shield Generator | -9/Materials | Scanalyzed Med. Armor Plating | -9/Storage | Hacked Hcp. Matter Pod | -7/Factory | Scanalyzed Adv. Recoil Stabilizer | -7/Factory | Scanalyzed Imp. Powered Armor | -7/Factory | Scanalyzed Imp. Flight Unit | -7/Factory | Scanalyzed Adv. Weight Redist. System | -7/Factory | Scanalyzed Imp. Coolant Injector | -7/Factory | Hacked Sml. Storage Unit | -7/Factory | Hacked Med. Storage Unit | -7/Factory | Hacked Com. Matter Pod | -7/Factory | Hacked Imp. Thermal Generator | -7/Zion | Archive Remote Datajack | -7/Zion | Archive Force Booster | -7/Zion | Archive Lrn. Missile Launcher | -7/Zion | Archive Enh. Gauss Cannon | -7/Zion | Archive Lyr. Light Armor Plating | -7/Zion | Archive Enh. Optical Array | -7/Zion | Archive Corruption Screen | -7/Zion | Archive Fusion Compressor | -7/Zion | Archive Weapon Cycler | -7/Zion | Archive Power Sword | -7/Zion | Archive Launcher Guidance Computer | -7/Zion | Archive Adv. Melee Analysis Suite | -7/Zion | Archive Imp. Component Analysis Suite | -7/Zion | Archive Imp. Cesium-ion Thruster | -6/Factory | Scanalyzed Enh. Coil Gun | -6/Factory | Scanalyzed Tiamat Missile Launcher | -6/Factory | Scanalyzed Mic. Nuclear Core | -6/Factory | Scanalyzed Exp. Heat Sink | -6/Factory | Scanalyzed Energy Well | -6/Hub_04(d) | Hacked Field Propulsion Drive | -6/Hub_04(d) | Hacked Adv. KE Penetrator | -5/Factory | Scanalyzed Cmb. Antigrav System | -5/Factory | Hacked Imp. Cloaking Device | -5/Factory | Scanalyzed Linear Gravjet | -5/Factory | Hacked Centrium Wheel | -5/Factory | Hacked Biomechanical Wings | -5/Factory | Scanalyzed Imp. Diametric Drive | -4/Factory | Scanalyzed Centrium Greatsword | -4/Factory | Scanalyzed Mic. Antimatter Reactor | -4/Factory | Hacked Lgt. Antimatter Cannon | -4/Factory | Scanalyzed Exp. Matter Compressor | -4/Factory | Scanalyzed Robot Schematics ------------------ M-13 Machinist | -10/Materials | Hacked L-31 Rogue | -9/Recycling | Hacked G-47 Trooper | -7/Zion | Archive B-48 Gladiator | -7/Zion | Archive W-25 Informer | -7/Zion | Archive H-88 Terminator | -7/Zion | Archive Fabricated ------------ Imp. Flight Unit | x1 | -7/Factory | Authchip Imp. Cesium-ion Thruster | x1 | -6/Factory | Authchip Imp. Cesium-ion Thruster | x1 | -5/Factory | Authchip Imp. Cesium-ion Thruster | x1 | -5/Factory | Authchip Imp. Diametric Drive | x1 | -4/Factory | Authchip Imp. Diametric Drive | x1 | -4/Factory | Authchip Adv. Recoil Stabilizer | x2 | -4/Factory | Authchip Imp. Diametric Drive | x1 | -4/Factory | Authchip Imp. Diametric Drive | x1 | -4/Factory | Authchip Repaired ---------- Lgt. Treads | 13% | -10/Materials Lgt. Treads | 32% | -10/Materials Lgt. Treads | 62% | -9/Materials | Broken Imp. Assault Rifle | 5% | -9/Storage Imp. Assault Rifle | 27% | -9/Storage Imp. Light Cannon | 38% | -9/Storage Imp. Flight Unit | 50% | -7/Factory | Broken Lgt. Antimatter Cannon | 14% | -3/Quarantine Alien Tech Used ----------------- Sigix Broadsword Dimensional Node Initializer Core Cannon Achievements -------------- None Challenges ------------ None Game ------ Seed AbsorptionSmartbombBiocell Manual? 0 Play Time 10:47:38 Cumulative 1043.6 hours Start 2025.07.10 @ 00:22:50 End 2025.07.11 @ 23:26:54 Sessions 11 Manual Loads 0 Difficulty Rogue Special Mode None Game No. 521 Rogue 521 Adventurer 0 Explorer 0 Win Type - Total 23 Types 10/4/3/0/1/1/2/2/0/0 Lore% 89 Gallery% 89 Achievement% 83 Wizard Run 0 Options --------- Layout 0 ASCII 0 Keyboard 0 Movement Numpad Keybinds 0 Fullscreen 2 Font 24/Smallcaps Map View 76x50 Zoom Use 0% Tactical HUD 1 Map Filters NONE Filters SHIFT_HUE(315) Steam 1 RUN: 4d80804b-55f1-429a-9bf3-1acd61dbeea9